Workbook

Sheet 环境科学2016级
A1: 中国石油大学（北京）化学工程学院2016级环境科学专业本科生综合测评汇总表
A2: 名次 | B2: 学号 | C2: 姓名 | D2: 智育总成绩 | E2: 德育总成绩 | F2: 体育成绩 | G2: 必修课优良率 | H2: 综合测评成绩 | I2: 体测成绩 | J2: 四级成绩 | K2: 六级成绩 | L2: 不及格门数 | M2: 有无纪律处分
A3: 1 | B3: 2016010130 | C3: 段练 | D3: 107.6019048 | E3: 119.5 | F3: 94.04 | G3: 100% | H3: 108.6253 | I3: 83.4 | J3: 551 | K3: 464 | L3: 0 | M3: 无
A4: 2 | B4: 2016010132 | C4: 郭超洁 | D4: 105.0735632 | E4: 105.900000 | F4: 81.54 | G4: 100% | H4: 102.8855 | I4: 75.9 | J4: 555 | K4: 606 | L4: 0 | M4: 无
A5: 3 | B5: 2016010138 | C5: 麻晓梅 | D5: 96.47098039 | E5: 111.800000 | F5: 80.34 | G5: 100% | H5: 97.9237 | I5: 73.9 | J5: 511 | K5: 439 | L5: 0 | M5: 无
A6: 4 | B6: 2016010139 | C6: 孙霄 | D6: 95.51116139 | E6: 110.000000 | F6: 81.96 | G6: 100% | H6: 97.0538 | I6: 76.6 | J6: 545 | K6: 530 | L6: 0 | M6: 无
A7: 5 | B7: 2016010141 | C7: 尹舒慧 | D7: 93.69537815 | E7: 102 | F7: 79.92 | G7: 100% | H7: 93.9788 | I7: 73.2 | J7: 505 | K7: 446 | L7: 0 | M7: 无
A8: 6 | B8: 2016010135 | C8: 解竞帆 | D8: 87.67157407 | E8: 115.400000 | F8: 85.86 | G8: 82% | H8: 93.0361 | I8: 83.1 | J8: 425 | K8: 388 | L8: 0 | M8: 无
A9: 7 | B9: 2016010140 | C9: 王明洋 | D9: 90.31825038 | E9: 108.5 | F9: 75.48 | G9: 100% | H9: 92.4708 | I9: 66 | J9: 443 | K9: - | L9: 0 | M9: 无
A10: 8 | B10: 2016010163 | C10: 刘改过 | D10: 90.30319934 | E10: 101.5740741 | F10: 88.72 | G10: 100% | H10: =D10*0.7+E10*0.2+F10*0.1 -> 92.3991 | I10: 81.2 | J10: 474 | K10: 390 | L10: 0 | M10: 无
A11: 9 | B11: 2016010136 | C11: 赖雨薇 | D11: 91.33176471 | E11: 102.5 | F11: 76.80 | G11: 100% | H11: 92.1122 | I11: 68 | J11: 458 | K11: - | L11: 0 | M11: 无
A12: 10 | B12: 2016010161 | C12: 李梦扬 | D12: 89.04150943 | E12: 101.537037 | F12: 84.16 | G12: 100% | H12: =D12*0.7+E12*0.2+F12*0.1 -> 91.0525 | I12: 73.6 | J12: 492 | K12: 375 | L12: 0 | M12: 无
A13: 11 | B13: 2016010165 | C13: 尚青 | D13: 88.08990976 | E13: 104.6296296 | F13: 83.32 | G13: 100% | H13: =D13*0.7+E13*0.2+F13*0.1 -> 90.9209 | I13: 72.2 | J13: 470 | K13: 364 | L13: 0 | M13: 无
A14: 12 | B14: 2016010183 | C14: 王嘉昕 | D14: 87.61389831 | E14: 99.61111111 | F14: 82.84 | G14: 92% | H14: =D14*0.7+E14*0.2+F14*0.1 -> 89.5360 | I14: 71.4 | J14: 429 | K14: - | L14: 0 | M14: 无
A15: 13 | B15: 2016010166 | C15: 汤明珍 | D15: 87.16855346 | E15: 99.64814815 | F15: 82.36 | G15: 91% | H15: =D15*0.7+E15*0.2+F15*0.1 -> 89.1836 | I15: 70.6 | J15: 460 | K15: 470 | L15: 0 | M15: 无
A16: 14 | B16: 2016010137 | C16: 罗抒晗 | D16: 82.93594771 | E16: 102.5 | F16: 83.28 | G16: 80% | H16: 86.8832 | I16: 78.8 | J16: 570 | K16: 547 | L16: 0 | M16: 无
A17: 15 | B17: 2016010179 | C17: 齐朝旭 | D17: 80.96528302 | E17: 105.6111111 | F17: 86.92 | G17: 82% | H17: =D17*0.7+E17*0.2+F17*0.1 -> 86.4899 | I17: 78.2 | J17: 492 | K17: 382 | L17: 0 | M17: 无
A18: 16 | B18: 2016010160 | C18: 方熹鹤 | D18: 79.7325283 | E18: 111.9296296 | F18: 82.18 | G18: 73% | H18: =D18*0.7+E18*0.2+F18*0.1 -> 86.4167 | I18: 70.3 | J18: 495 | K18: 442 | L18: 0 | M18: 无
A19: 17 | B19: 2016010131 | C19: 耿夏欣 | D19: 82.82270382 | E19: 102 | F19: 79.50 | G19: 80% | H19: 86.3259 | I19: 72.5 | J19: 460 | K19: 508 | L19: 0 | M19: 无
A20: 18 | B20: 2016010174 | C20: 刘靖 | D20: 83.83033382 | E20: 102.6111111 | F20: 68.56 | G20: 73% | H20: =D20*0.7+E20*0.2+F20*0.1 -> 86.0595 | I20: 47.6 | J20: 467 | K20: 441 | L20: 0 | M20: 无
A21: 19 | B21: 2016010177 | C21: 马哲宇 | D21: 81.11127688 | E21: 99.14814815 | F21: 83.80 | G21: 82% | H21: =D21*0.7+E21*0.2+F21*0.1 -> 84.9875 | I21: 73 | J21: 431 | K21: - | L21: 1 | M21: 无
A22: 20 | B22: 2016010151 | C22: 杨宇 | D22: 78.96946779 | E22: 108 | F22: 78.60 | G22: 50% | H22: 84.7386 | I22: 61 | J22: 441 | K22: - | L22: 0 | M22: 无
A23: 21 | B23: 2016010167 | C23: 涂茁炜 | D23: 80.94989011 | E23: 100.0925926 | F23: 80.50 | G23: 75% | H23: =D23*0.7+E23*0.2+F23*0.1 -> 84.7334 | I23: 67.5 | J23: 618 | K23: 563 | L23: 0 | M23: 无
A24: 22 | B24: 2016010168 | C24: 许家宁 | D24: 79.4685283 | E24: 99.59259259 | F24: 84.52 | G24: 64% | H24: =D24*0.7+E24*0.2+F24*0.1 -> 83.9985 | I24: 74.2 | J24: 460 | K24: 444 | L24: 0 | M24: 无
A25: 23 | B25: 2016010164 | C25: 刘雅雯 | D25: 77.56473149 | E25: 106.1481481 | F25: 82.12 | G25: 55% | H25: =D25*0.7+E25*0.2+F25*0.1 -> 83.7369 | I25: 70.2 | J25: 496 | K25: 405 | L25: 0 | M25: 无
A26: 24 | B26: 2016010150 | C26: 徐加霸 | D26: 77.10444444 | E26: 102.000000 | F26: 85.68 | G26: 55% | H26: 82.9411 | I26: 82.8 | J26: 449 | K26: - | L26: 0 | M26: 无
A27: 25 | B27: 2016010173 | C27: 李志萌 | D27: 76.9427673 | E27: 103.6481481 | F27: 82.48 | G27: 55% | H27: =D27*0.7+E27*0.2+F27*0.1 -> 82.8376 | I27: 70.8 | J27: 370 | K27: - | L27: 0 | M27: 无
A28: 26 | B28: 2016010178 | C28: 欧邦清 | D28: 79.08177986 | E28: 99.38888889 | F28: 72.64 | G28: 83% | H28: 82.4990 | I28: 54.4 | J28: 367 | K28: - | L28: 0 | M28: 无
A29: 27 | B29: 2016010181 | C29: 滕桂鹏 | D29: 77.5928465 | E29: 99.48148148 | F29: 78.40 | G29: 42% | H29: 82.0513 | I29: 64 | J29: 381 | K29: - | L29: 0 | M29: 无
A30: 28 | B30: 2016010186 | C30: 邢延德 | D30: 77.24779051 | E30: 100.0925926 | F30: 77.20 | G30: 50% | H30: 81.8120 | I30: 62 | J30: 426 | K30: - | L30: 0 | M30: 无
A31: 29 | B31: 2016010189 | C31: 赵鑫洋 | D31: 77.04687954 | E31: 99.51851852 | F31: 79.60 | G31: 55% | H31: 81.7965 | I31: 66 | J31: 466 | K31: 414 | L31: 0 | M31: 无
A32: 30 | B32: 2016010175 | C32: 刘子瑞 | D32: 75.92238994 | E32: 98.59259259 | F32: 89.26 | G32: 36% | H32: 81.7902 | I32: 82.1 | J32: 475 | K32: 272 | L32: 1 | M32: 无
A33: 31 | B33: 2016010169 | C33: 张诗卿 | D33: 75.41596517 | E33: 101.5925926 | F33: 84.22 | G33: 36% | H33: 81.5317 | I33: 73.7 | J33: 440 | K33: - | L33: 1 | M33: 无
A34: 32 | B34: 2016010187 | C34: 徐俊 | D34: 75.48835821 | E34: 98.57407407 | F34: 79.18 | G34: 79% | H34: 80.4747 | I34: 65.3 | J34: 443 | K34: 374 | L34: 1 | M34: 无
A35: 33 | B35: 2016010144 | C35: 李臣委 | D35: 74.80335484 | E35: 102 | F35: 75.84 | G35: 58% | H35: 80.3463 | I35: 66.4 | J35: 578 | K35: 507 | L35: 0 | M35: 无
A36: 34 | B36: 2016010155 | C36: 赵启发 | D36: 72.41960784 | E36: 106.000000 | F36: 83.58 | G36: 40% | H36: 80.2517 | I36: 79.3 | J36: 361 | K36: - | L36: 0 | M36: 无
A37: 35 | B37: 2016010146 | C37: 盛梦凡 | D37: 74.43001195 | E37: 102.000000 | F37: 73.02 | G37: 25% | H37: 79.8030 | I37: 61.7 | J37: 400 | K37: - | L37: 0 | M37: 无
A38: 36 | B38: 2016010180 | C38: 撒世东 | D38: 75.54113208 | E38: 86.35185185 | F38: 95.68 | G38: 36% | H38: =D38*0.7+E38*0.2+F38*0.1 -> 79.7172 | I38: 92.8 | J38: 446 | K38: 346 | L38: 0 | M38: 留校察看
A39: 37 | B39: 2016010152 | C39: 余锦标 | D39: 70.89185185 | E39: 102 | F39: 91.38 | G39: 18% | H39: 79.1623 | I39: 82.3 | J39: 478 | K39: - | L39: 0 | M39: 无
A40: 38 | B40: 2016010145 | C40: 刘泽 | D40: 64.01502304 | E40: 103.6 | F40: 125.56 | G40: 8% | H40: 78.0865 | I40: 83 | J40: 0 | K40: - | L40: 3 | M40: 无
A41: 39 | B41: 2016010172 | C41: 李牛江杰 | D41: 72.50310734 | E41: 101.4814815 | F41: 70.12 | G41: 42% | H41: =D41*0.7+E41*0.2+F41*0.1 -> 78.0605 | I41: 50.2 | J41: 451 | K41: - | L41: 1 | M41: 无
A42: 40 | B42: 2016010176 | C42: 马海超 | D42: 66.59369139 | E42: 110.3296296 | F42: 85.30 | G42: 31% | H42: =D42*0.7+E42*0.2+F42*0.1 -> 77.2115 | I42: 75.5 | J42: 385 | K42: - | L42: 1 | M42: 无
A43: 41 | B43: 2015010174 | C43: 达那江·哈吉 | D43: 70.40847953 | E43: 97.38888889 | F43: 75.22 | G43: 36% | H43: =D43*0.7+E43*0.2+F43*0.1 -> 76.2857 | I43: 58.7 | J43: 426 | K43: - | L43: 2 | M43: 无
A44: 42 | B44: 2016010154 | C44: 张一驰 | D44: 68.15294118 | E44: 102.000000 | F44: 74.40 | G44: 0% | H44: 75.5471 | I44: 64 | J44: 436 | K44: - | L44: 0 | M44: 无
A45: 43 | B45: 2016010185 | C45: 王玉琨 | D45: 64.91657143 | E45: 95.88888889 | F45: 103.09 | G45: 40% | H45: =D45*0.7+E45*0.2+F45*0.1 -> 74.9280 | I45: 60.7 | J45: 524 | K45: 448 | L45: 2 | M45: 无
A46: 44 | B46: 2016010159 | C46: 朱江 | D46: 67.51348039 | E46: 101.2 | F46: 72.90 | G46: 20% | H46: 74.7894 | I46: 62 | J46: 431 | K46: - | L46: 1 | M46: 无
A47: 45 | B47: 2016010171 | C47: 胡啸林 | D47: 68.38578616 | E47: 95.98148148 | F47: 74.98 | G47: 9% | H47: =D47*0.7+E47*0.2+F47*0.1 -> 74.5643 | I47: 58.3 | J47: 464 | K47: - | L47: 2 | M47: 无
A48: 46 | B48: 2016010143 | C48: 丁紫鹤 | D48: 66.56967742 | E48: 100.4 | F48: 78.84 | G48: 17% | H48: 74.5628 | I48: 71.4 | J48: 439 | K48: - | L48: 2 | M48: 无
A49: 47 | B49: 2016010156 | C49: 赵鑫 | D49: 62.40891266 | E49: 110.300000 | F49: 85.68 | G49: 10% | H49: 74.3142 | I49: 82.8 | J49: 400 | K49: - | L49: 4 | M49: 无
A50: 48 | B50: 2016010184 | C50: 王永铎 | D50: 68.64558933 | E50: 83.90740741 | F50: 81.16 | G50: 14% | H50: =D50*0.7+E50*0.2+F50*0.1 -> 72.9494 | I50: 68.6 | J50: 303 | K50: - | L50: 2 | M50: 留校察看
A51: 49 | B51: 2016010148 | C51: 王一帆 | D51: 63.95091714 | E51: 99.6 | F51: 77.40 | G51: 10% | H51: 72.4256 | I51: 69 | J51: 462 | K51: - | L51: 3 | M51: 无

Sheet 能源化学工程2016级
A1: 中国石油大学（北京）化学工程学院2016级能源化学工程专业本科生综合测评汇总表
A2: 名次 | B2: 学号 | C2: 姓名 | D2: 德育总成绩 | E2: 智育总成绩 | F2: 体育成绩 | G2: 必修课优良率 | H2: 综合测评成绩 | I2: 四级成绩 | J2: 六级成绩 | K2: 体测成绩 | L2: 不及格门数 | M2: 有无纪律处分
A3: 1 | B3: 2016010697 | C3: 张亚楠 | D3: 109.4889 | E3: 108.1762 | F3: 85.9600 | G3: 100.00% | H3: 106.2171 | I3: 542 | J3: 478.00 | K3: 76.60 | L3: 0 | M3: 无
A4: 2 | B4: 2016010714 | C4: 杨欢 | D4: 109.3889 | E4: 100.6952 | F4: 81.5200 | G4: 100.00% | H4: 100.5164 | I4: 427 | J4: 294.00 | K4: 69.20 | L4: 0 | M4: 无
A5: 3 | B5: 2016010711 | C5: 孙帆 | D5: 106.0222 | E5: 101.1524 | F5: 82.6000 | G5: 100.00% | H5: 100.2711 | I5: 595 | J5: 577.00 | K5: 71.00 | L5: 0 | M5: 无
A6: 4 | B6: 2016010716 | C6: 张睿 | D6: 105.8556 | E6: 96.9506 | F6: 94.6000 | G6: 100.00% | H6: 98.4966 | I6: 467 | J6: 470.00 | K6: 91.00 | L6: 0 | M6: 无
A7: 5 | B7: 2016010694 | C7: 谭言 | D7: 105.4444 | E7: 95.3460 | F7: 92.8000 | G7: 94.74% | H7: 97.1111 | I7: 515 | J7: 437.00 | K7: 88.00 | L7: 0 | M7: 无
A8: 6 | B8: 2016010696 | C8: 张岱 | D8: 102.7444 | E8: 97.0095 | F8: 82.1200 | G8: 94.74% | H8: 96.6676 | I8: 531 | J8: 429.00 | K8: 70.20 | L8: 0 | M8: 无
A9: 7 | B9: 2016010713 | C9: 徐明吕 | D9: 100.2444 | E9: 92.5124 | F9: 78.9400 | G9: 100.00% | H9: 92.7016 | I9: 505 | J9: 426.00 | K9: 64.90 | L9: 0 | M9: 无
A10: 8 | B10: 2016010710 | C10: 戎超 | D10: 107.4889 | E10: 87.6619 | F10: 81.1000 | G10: 100.00% | H10: 90.9711 | I10: 428 | J10: - | K10: 68.50 | L10: 0 | M10: 无
A11: 9 | B11: 2016010703 | C11: 雎宏伟 | D11: 106.0444 | E11: 85.7048 | F11: 87.2800 | G11: 94.74% | H11: 89.9302 | I11: 440 | J11: 326.00 | K11: 78.80 | L11: 0 | M11: 无
A12: 10 | B12: 2016010706 | C12: 刘成伟 | D12: 106.6556 | E12: 85.5359 | F12: 82.5400 | G12: 78.95% | H12: 89.4603 | I12: 554 | J12: 433.00 | K12: 70.90 | L12: 0 | M12: 无
A13: 11 | B13: 2016010709 | C13: 任政星 | D13: 99.5556 | E13: 87.3714 | F13: 82.4800 | G13: 84.21% | H13: 89.3191 | I13: 437 | J13: - | K13: 70.80 | L13: 0 | M13: 无
A14: 12 | B14: 2016010665 | C14: 李昆鸿 | D14: 116.68 | E14: 81.2063 | F14: 88.3600 | G14: 68.42% | H14: 89.0174 | I14: 492 | J14: 509 | K14: 80.60 | L14: 1 | M14: 无
A15: 13 | B15: 2016010684 | C15: 项怀忠 | D15: 108.23 | E15: 84.8838 | F15: 76.0000 | G15: 89.47% | H15: 88.6656 | I15: 478 | J15: 455 | K15: 60.00 | L15: 0 | M15: 无
A16: 14 | B16: 2016010718 | C16: 郑汪洋 | D16: 106.2222 | E16: 84.5512 | F16: 80.4400 | G16: 84.21% | H16: 88.4743 | I16: 457 | J16: 348.00 | K16: 67.40 | L16: 0 | M16: 无
A17: 15 | B17: 2016010688 | C17: 赵泽 | D17: 103.58 | E17: 83.7495 | F17: 81.6400 | G17: 84.21% | H17: 87.5051 | I17: 523 | J17: 442 | K17: 69.40 | L17: 0 | M17: 无
A18: 16 | B18: 2016010693 | C18: 马晓双 | D18: 101.3444 | E18: 82.6857 | F18: 85.0000 | G18: 68.42% | H18: 86.6489 | I18: 443 | J18: - | K18: 75.00 | L18: 0 | M18: 无
A19: 17 | B19: 2016010673 | C19: 焦惊晨 | D19: 100.50 | E19: 82.9333 | F19: 82.9000 | G19: 63.16% | H19: 86.4442 | I19: 524 | J19: 503 | K19: 68.60 | L19: 0 | M19: 无
A20: 18 | B20: 2016010662 | C20: 郭炅 | D20: 101.48 | E20: 82.1143 | F20: 85.6600 | G20: 73.68% | H20: 86.3425 | I20: 449 | K20: 76.10 | L20: 1 | M20: 无
A21: 19 | B21: 2016010660 | C21: 陈皓荣 | D21: 101.03 | E21: 82.1310 | F21: 85.6600 | G21: 68.42% | H21: 86.2643 | I21: 457 | J21: 318 | K21: 76.10 | L21: 0 | M21: 无
A22: 20 | B22: 2016010705 | C22: 刘波 | D22: 99.4000 | E22: 81.9937 | F22: 89.0800 | G22: 78.95% | H22: 86.1836 | I22: 444 | J22: - | K22: 81.80 | L22: 0 | M22: 无
A23: 21 | B23: 2016010700 | C23: 冯富龙 | D23: 99.4667 | E23: 82.8956 | F23: 81.7600 | G23: 68.42% | H23: 86.0962 | I23: 443 | J23: 323.00 | K23: 69.60 | L23: 0 | M23: 无
A24: 22 | B24: 2016010664 | C24: 雷湘杰 | D24: 100.11 | E24: 82.4835 | F24: 77.4400 | G24: 78.95% | H24: 85.5042 | I24: 429 | J24: 289 | K24: 62.40 | L24: 0 | M24: 无
A25: 23 | B25: 2016010677 | C25: 马晓桐 | D25: 99.63 | E25: 81.1913 | F25: 76.3600 | G25: 73.68% | H25: 84.3969 | I25: 463 | J25: 470 | K25: 60.60 | L25: 0 | M25: 无
A26: 24 | B26: 2016010674 | C26: 李增勇 | D26: 99.53 | E26: 80.5990 | F26: 76.0000 | G26: 57.89% | H26: 83.9254 | I26: 447 | J26: 298 | K26: 60.00 | L26: 0 | M26: 无
A27: 25 | B27: 2016010699 | C27: 崔越林 | D27: 99.5111 | E27: 80.3262 | F27: 75.4000 | G27: 63.16% | H27: 83.6706 | I27: 510 | J27: 474.00 | K27: 59.00 | L27: 0 | M27: 无
A28: 26 | B28: 2016010692 | C28: 刘雅馨 | D28: 99.7222 | E28: 77.3819 | F28: 84.6000 | G28: 21.05% | H28: 82.5717 | I28: 466 | J28: - | K28: 71.00 | L28: 3 | M28: 无
A29: 27 | B29: 2016010701 | C29: 甘文哲 | D29: 99.2000 | E29: 77.4399 | F29: 83.2000 | G29: 36.84% | H29: 82.3679 | I29: 436 | J29: - | K29: 72.00 | L29: 0 | M29: 无
A30: 28 | B30: 2016010682 | C30: 万博欣 | D30: 99.53 | E30: 76.1567 | F30: 83.9800 | G30: 47.37% | H30: 81.6138 | I30: 430 | J30: 321 | K30: 73.30 | L30: 1 | M30: 无
A31: 29 | B31: 2016010717 | C31: 赵艺凯 | D31: 106.2000 | E31: 75.2529 | F31: 74.5600 | G31: 52.63% | H31: 81.3730 | I31: 434 | J31: 369.00 | K31: 57.60 | L31: 0 | M31: 无
A32: 30 | B32: 2016010672 | C32: 华陈杰 | D32: 106.91 | E32: 73.8694 | F32: 77.1400 | G32: 26.32% | H32: 80.8043 | I32: 430 | J32: 359 | K32: 61.90 | L32: 0 | M32: 无
A33: 31 | B33: 2016010685 | C33: 谢佩潭 | D33: 99.28 | E33: 76.1613 | F33: 76.2400 | G33: 42.11% | H33: 80.7934 | I33: 450 | J33: 288 | K33: 60.40 | L33: 1 | M33: 无
A34: 32 | B34: 2016010702 | C34: 管文超 | D34: 98.8889 | E34: 75.4003 | F34: 80.4400 | G34: 36.84% | H34: 80.6020 | I34: 486 | J34: 455.00 | K34: 67.40 | L34: 1 | M34: 无
A35: 33 | B35: 2016010715 | C35: 岳书膺 | D35: 98.9556 | E35: 74.7067 | F35: 79.1200 | G35: 42.11% | H35: 79.9978 | I35: 474 | J35: 322.00 | K35: 65.20 | L35: 1 | M35: 无
A36: 34 | B36: 2016010678 | C36: 彭浩东 | D36: 97.9826 | E36: 75.2530 | F36: 75.7600 | G36: 36.84% | H36: 79.8496 | I36: 436 | J36: - | K36: 59.60 | L36: 0 | M36: 无
A37: 35 | B37: 2016010675 | C37: 马硕 | D37: 102.81 | E37: 73.0645 | F37: 79.9600 | G37: 31.58% | H37: 79.7029 | I37: 395 | J37: - | K37: 66.60 | L37: 1 | M37: 无
A38: 36 | B38: 2016010667 | C38: 张小华 | D38: 99.56 | E38: 74.2301 | F38: 77.9200 | G38: 42.11% | H38: 79.6648 | I38: 492 | J38: 456 | K38: 63.20 | L38: 1 | M38: 无
A39: 37 | B39: 2016010676 | C39: 马文蔚 | D39: 101.93 | E39: 71.6857 | F39: 80.0200 | G39: 52.63% | H39: 78.5681 | I39: 445 | K39: 66.70 | L39: 1 | M39: 无
A40: 38 | B40: 2016010695 | C40: 王芊 | D40: 99.0444 | E40: 71.3728 | F40: 85.0600 | G40: 36.84% | H40: 78.2758 | I40: 423 | J40: - | K40: 75.10 | L40: 1 | M40: 无
A41: 39 | B41: 2016010670 | C41: 陈旭 | D41: 101.46 | E41: 69.4156 | F41: 77.9200 | G41: 21.05% | H41: 76.6742 | I41: 438 | J41: 330 | K41: 63.20 | L41: 2 | M41: 无
A42: 40 | B42: 2016010707 | C42: 罗昊峰 | D42: 97.7556 | E42: 69.5818 | F42: 79.6000 | G42: 21.05% | H42: 76.2184 | I42: 412 | J42: 260.00 | K42: 66.00 | L42: 2 | M42: 无
A43: 41 | B43: 2016010698 | C43: 艾巴尔·努尔哈比 | D43: 98.2000 | E43: 69.3844 | F43: 78.7600 | G43: 21.05% | H43: 76.0851 | I43: 510 | J43: 412.00 | K43: 64.60 | L43: 2 | M43: 无
A44: 42 | B44: 2016010668 | C44: 艾克拜尔·阿不都热西提 | D44: 99.58 | E44: 68.5048 | F44: 76.0000 | G44: 10.53% | H44: 75.4699 | I44: 379 | J44: - | K44: 70.00 | L44: 0 | M44: 无
A45: 43 | B45: 2016010681 | C45: 田辉 | D45: 101.96 | E45: 67.4364 | F45: 77.9800 | G45: 15.79% | H45: 75.3948 | I45: 320 | J45: - | K45: 63.30 | L45: 2 | M45: 无
A46: 44 | B46: 2016010708 | C46: 马利 | D46: 99.0000 | E46: 67.1059 | F46: 84.1600 | G46: 15.79% | H46: 75.1901 | I46: 360 | J46: - | K46: 73.60 | L46: 1 | M46: 无
A47: 45 | B47: 2016010686 | C47: 熊若尧 | D47: 97.18 | E47: 64.9370 | F47: 79.1200 | G47: 5.26% | H47: 72.8044 | I47: 500 | J47: 410 | K47: 65.20 | L47: 3 | M47: 无
A48: 46 | B48: 2016010663 | C48: 哈斯塔娜 | D48: 99.36 | E48: 62.4190 | F48: 87.2200 | G48: 15.79% | H48: 72.2875 | I48: - | J48: - | K48: 78.70 | L48: 1 | M48: 无
A49: 47 | B49: 2016010689 | C49: 杜予歆 | D49: 96.6000 | E49: 66.0714 | F49: 61.4200 | G49: 26.32% | H49: 71.7120 | I49: 443 | J49: - | K49: 35.70 | L49: 4 | M49: 无
A50: 48 | B50: 2016010683 | C50: 吴怡 | D50: 95.33 | E50: 62.7269 | F50: 85.4200 | G50: 26.32% | H50: 71.5169 | I50: 393 | J50: - | K50: 75.70 | L50: 6 | M50: 无
A51: 49 | B51: 2016010679 | C51: 施丰斌 | D51: 95.58 | E51: 61.3138 | F51: 75.7000 | G51: 15.79% | H51: 69.6062 | I51: - | J51: - | K51: 59.50 | L51: 5 | M51: 无
A52: 50 | B52: 2016010712 | C52: 王砚翔 | D52: 92.9556 | E52: 40.0596 | F52: 73.6600 | G52: 10.53% | H52: 53.9988 | I52: - | J52: - | K52: 56.10 | L52: 8 | M52: 无

Sheet 环境工程2016级
A1: 序号 | B1: 学号 | C1: 姓名 | D1: 德育成绩 | K1: 智育成绩 | S1: 体育成绩 | AA1: 综合测评总分 | AB1: 优良率 | AC1: 是否挂科
D2: 班级互评分 | E2: 班级互评分×0.6 | F2: 辅导员打分 | G2: 辅导员打分×0.4 | H2: 德育加分 | I2: 德育成绩 | J2: 德育成绩×0.2 | K2: 必修课加权平均分 | L2: 必修课加权平均分*0.8 | M2: 选修课加权平均分 | N2: 选修课加权平均分*0.2 | O2: 智育基础分 | P2: 智育加分 | Q2: 智育成绩 | R2: 智育成绩×0.7 | S2: 体育课成绩（体测成绩） | T2: 体育课成绩*0.6 | U2: 平时锻炼分数 | V2: 平时锻炼分数*0.4 | W2: 体育基础分 | X2: 体育加分 | Y2: 体育成绩 | Z2: 体育成绩×0.1
A3: 1 | B3: 2015010676 | C3: 高信中 | D3: 99.13115385 | E3: 59.47869231 | F3: 71 | G3: 28.4 | H3: 12 | I3: =E3+G3+H3 -> 99.87869231 | J3: =I3*0.2 -> 19.97573846 | K3: 48.72857143 | L3: 38.98285714 | M3: 60.18181818 | N3: 12.03636364 | O3: =L3+N3 -> 51.01922078 | Q3: =O3+P3 -> 51.01922078 | R3: =Q3*0.7 -> 35.71345455 | S3: 81.4 | T3: 48.84 | U3: 100 | V3: 40 | W3: =T3+V3 -> 88.84 | Y3: =W3+X3 -> 88.84 | Z3: =Y3*0.1 -> 8.884 | AA3: =J3+R3+Z3 -> 64.57319301 | AB3: 13% | AC3: 是
A4: 2 | B4: 2016010599 | C4: 程诗宇 | D4: 99.71448718 | E4: 59.82869231 | F4: 100 | G4: 40 | H4: 17 | I4: 116.8286923 | J4: 23.36573846 | K4: 88.60344828 | L4: 70.88275862 | M4: 88.48275862 | N4: 17.69655172 | O4: 88.57931034 | P4: 13 | Q4: 101.5793103 | R4: 71.10551724 | S4: 75.1 | T4: 45.06 | U4: 100 | V4: 40 | W4: 85.06 | Y4: 85.06 | Z4: 8.506 | AA4: 102.9772557 | AB4: 100%
A5: 3 | B5: 2016010602 | C5: 李异繁 | D5: 99.54782051 | E5: 59.72869231 | F5: 100 | G5: 40 | H5: 14.75 | I5: 114.4786923 | J5: 22.89573846 | K5: 94.93103448 | L5: 75.94482759 | M5: 94.55172414 | N5: 18.91034483 | O5: 94.85517241 | P5: 30 | Q5: 124.8551724 | R5: 87.39862069 | S5: 86 | T5: 51.6 | U5: 100 | V5: 40 | W5: 91.6 | X5: 4 | Y5: 95.6 | Z5: 9.56 | AA5: 119.8543592 | AB5: 100%
A6: 4 | B6: 2016010603 | C6: 刘涵钰 | D6: 99.54782051 | E6: 59.72869231 | F6: 100 | G6: 40 | H6: 19.35 | I6: 119.0786923 | J6: 23.81573846 | K6: 90.34482759 | L6: 72.27586207 | M6: 87.4516129 | N6: 17.49032258 | O6: 89.76618465 | P6: 2 | Q6: 91.76618465 | R6: 64.23632925 | S6: 75.068 | T6: 45.0408 | U6: 100 | V6: 40 | W6: 85.0408 | Y6: 85.0408 | Z6: 8.50408 | AA6: 96.55614772 | AB6: 100%
A7: 5 | B7: 2016010604 | C7: 刘雅 | D7: 99.54782051 | E7: 59.72869231 | F7: 100 | G7: 40 | H7: 18.6 | I7: 118.3286923 | J7: 23.66573846 | K7: 94.06896552 | L7: 75.25517241 | M7: 94.81818182 | N7: 18.96363636 | O7: 94.21880878 | P7: 44 | Q7: 138.2188088 | R7: 96.75316614 | S7: 74.9 | T7: 44.94 | U7: 100 | V7: 40 | W7: 84.94 | Y7: 84.94 | Z7: 8.494 | AA7: 128.9129046 | AB7: 100%
A8: 6 | B8: 2016010605 | C8: 马晓红 | D8: 99.67282051 | E8: 59.80369231 | F8: 100 | G8: 40 | H8: 12.25 | I8: 112.0536923 | J8: 22.41073846 | K8: 74.56060606 | L8: 59.64848485 | M8: 75.51724138 | N8: 15.10344828 | O8: 74.75193312 | Q8: 74.75193312 | R8: 52.32635319 | S8: 72.2 | T8: 43.32 | U8: 100 | V8: 40 | W8: 83.32 | Y8: 83.32 | Z8: 8.332 | AA8: 83.06909165 | AB8: 38%
A9: 7 | B9: 2016010606 | C9: 马一凡 | D9: 99.71448718 | E9: 59.82869231 | F9: 100 | G9: 40 | H9: 12.25 | I9: 112.0786923 | J9: 22.41573846 | K9: 80.68965517 | L9: 64.55172414 | M9: 79.20689655 | N9: 15.84137931 | O9: 80.39310345 | P9: 27 | Q9: 107.3931034 | R9: 75.17517241 | S9: 77.4 | T9: 46.44 | U9: 100 | V9: 40 | W9: 86.44 | Y9: 86.44 | Z9: 8.644 | AA9: 106.2349109 | AB9: 60%
A10: 8 | B10: 2016010607 | C10: 齐泽丰 | D10: 99.58948718 | E10: 59.75369231 | F10: 100 | G10: 40 | H10: 12.75 | I10: 112.5036923 | J10: 22.50073846 | K10: 89.82758621 | L10: 71.86206897 | M10: 89.51724138 | N10: 17.90344828 | O10: 89.76551724 | P10: 35.66666667 | Q10: 125.4321839 | R10: 87.80252874 | S10: 85.1 | T10: 51.06 | U10: 100 | V10: 40 | W10: 91.06 | Y10: 91.06 | Z10: 9.106 | AA10: 119.4092672 | AB10: 100%
A11: 9 | B11: 2016010608 | C11: 任玥辉 | D11: 99.67282051 | E11: 59.80369231 | F11: 100 | G11: 40 | H11: 34.5 | I11: 134.3036923 | J11: 26.86073846 | K11: 85.12068966 | L11: 68.09655172 | M11: 87.27586207 | N11: 17.45517241 | O11: 85.55172414 | P11: 4.5 | Q11: 90.05172414 | R11: 63.0362069 | S11: 74 | T11: 44.4 | U11: 100 | V11: 40 | W11: 84.4 | Y11: 84.4 | Z11: 8.44 | AA11: 98.33694536 | AB11: 93%
A12: 10 | B12: 2016010609 | C12: 唐钰琪 | D12: 99.08948718 | E12: 59.45369231 | F12: 75 | G12: 30 | H12: 31.95 | I12: 121.4036923 | J12: 24.28073846 | K12: 75.5862069 | L12: 60.46896552 | M12: 87.38709677 | N12: 17.47741935 | O12: 77.94638487 | P12: 15.33333333 | Q12: 93.27971821 | R12: 65.29580274 | S12: 78.9 | T12: 47.34 | U12: 100 | V12: 40 | W12: 87.34 | X12: 17 | Y12: 104.34 | Z12: 10.434 | AA12: 100.0105412 | AB12: 79% | AC12: 是
A13: 11 | B13: 2016010610 | C13: 闫玺宇 | D13: 99.46448718 | E13: 59.67869231 | F13: 95 | G13: 38 | H13: 12 | I13: 109.6786923 | J13: 21.93573846 | K13: 70.24242424 | L13: 56.19393939 | M13: 72.57575758 | N13: 14.51515152 | O13: 70.70909091 | Q13: 70.70909091 | R13: 49.49636364 | S13: 80.4 | T13: 48.24 | U13: 100 | V13: 40 | W13: 88.24 | Y13: 88.24 | Z13: 8.824 | AA13: 80.2561021 | AB13: 25% | AC13: 是
A14: 12 | B14: 2016010611 | C14: 杨玉凤 | D14: 99.58948718 | E14: 59.75369231 | F14: 95 | G14: 38 | H14: 16.4 | I14: 114.1536923 | J14: 22.83073846 | K14: 72.97014925 | L14: 58.3761194 | M14: 79.87878788 | N14: 15.97575758 | O14: 74.35187698 | Q14: 74.35187698 | R14: 52.04631389 | S14: 77 | T14: 46.2 | U14: 100 | V14: 40 | W14: 86.2 | Y14: 86.2 | Z14: 8.62 | AA14: 83.49705235 | AB14: 44% | AC14: 是
A15: 13 | B15: 2016010612 | C15: 游恋 | D15: 99.58948718 | E15: 59.75369231 | F15: 100 | G15: 40 | H15: 15.4 | I15: 115.1536923 | J15: 23.03073846 | K15: 89.87931034 | L15: 71.90344828 | M15: 87.86206897 | N15: 17.57241379 | O15: 89.47586207 | Q15: 89.47586207 | R15: 62.63310345 | S15: 79.9 | T15: 47.94 | U15: 100 | V15: 40 | W15: 87.94 | Y15: 87.94 | Z15: 8.794 | AA15: 94.45784191 | AB15: 100%
A16: 14 | B16: 2016010613 | C16: 余美琪 | D16: 99.67282051 | E16: 59.80369231 | F16: 100 | G16: 40 | H16: 12.25 | I16: 112.0536923 | J16: 22.41073846 | K16: 88.63793103 | L16: 70.91034483 | M16: 89.57575758 | N16: 17.91515152 | O16: 88.82549634 | P16: 4 | Q16: 92.82549634 | R16: 64.97784744 | S16: 80.3 | T16: 48.18 | U16: 100 | V16: 40 | W16: 88.18 | Y16: 88.18 | Z16: 8.818 | AA16: 96.2065859 | AB16: 93%
A17: 15 | B17: 2016010614 | C17: 仲英杰 | D17: 99.83948718 | E17: 59.90369231 | F17: 100 | G17: 40 | H17: 19.2 | I17: 119.1036923 | J17: 23.82073846 | K17: 88.96551724 | L17: 71.17241379 | M17: 93.61538462 | N17: 18.72307692 | O17: 89.89549072 | P17: 22.5 | Q17: 112.3954907 | R17: 78.6768435 | S17: 77.6 | T17: 46.56 | U17: 100 | V17: 40 | W17: 86.56 | Y17: 86.56 | Z17: 8.656 | AA17: 111.153582 | AB17: 93%
A18: 16 | B18: 2016010617 | C18: 陈闯 | D18: 99.71448718 | E18: 59.82869231 | F18: 100 | G18: 40 | H18: 27.25 | I18: 127.0786923 | J18: 25.41573846 | K18: 87.15517241 | L18: 69.72413793 | M18: 87.31034483 | N18: 17.46206897 | O18: 87.1862069 | P18: 16.83333333 | Q18: 104.0195402 | R18: 72.81367816 | S18: 87.2 | T18: 52.32 | U18: 100 | V18: 40 | W18: 92.32 | Y18: 92.32 | Z18: 9.232 | AA18: 107.4614166 | AB18: 100%
A19: 17 | B19: 2016010619 | C19: 丁相瑞 | D19: 99.79782051 | E19: 59.87869231 | F19: 100 | G19: 40 | H19: 23.25 | I19: 123.1286923 | J19: 24.62573846 | K19: 77.33333333 | L19: 61.86666667 | M19: 77.90909091 | N19: 15.58181818 | O19: 77.44848485 | P19: 2 | Q19: 79.44848485 | R19: 55.61393939 | S19: 69 | T19: 41.4 | U19: 100 | V19: 40 | W19: 81.4 | Y19: 81.4 | Z19: 8.14 | AA19: 88.37967786 | AB19: 50%
A20: 18 | B20: 2016010620 | C20: 高军政 | D20: 99.67282051 | E20: 59.80369231 | F20: 100 | G20: 40 | H20: 12 | I20: 111.8036923 | J20: 22.36073846 | K20: 86.9137931 | L20: 69.53103448 | M20: 84.65517241 | N20: 16.93103448 | O20: 86.46206897 | Q20: 86.46206897 | R20: 60.52344828 | S20: 63.4 | T20: 38.04 | U20: 100 | V20: 40 | W20: 78.04 | Y20: 78.04 | Z20: 7.804 | AA20: 90.68818674 | AB20: 93%
A21: 19 | B21: 2016010621 | C21: 贾钰森 | D21: 99.50615385 | E21: 59.70369231 | F21: 75 | G21: 30 | H21: 18 | I21: 107.7036923 | J21: 21.54073846 | K21: 74.17241379 | L21: 59.33793103 | M21: 79.45714286 | N21: 15.89142857 | O21: 75.22935961 | Q21: 75.22935961 | R21: 52.66055172 | S21: 79.7 | T21: 47.82 | U21: 100 | V21: 40 | W21: 87.82 | Y21: 87.82 | Z21: 8.782 | AA21: 82.98329019 | AB21: 71% | AC21: 是
A22: 20 | B22: 2016010622 | C22: 李佳奇 | D22: 99.63115385 | E22: 59.77869231 | F22: 100 | G22: 40 | H22: 28.8 | I22: 128.5786923 | J22: 25.71573846 | K22: 92.03448276 | L22: 73.62758621 | M22: 92.32258065 | N22: 18.46451613 | O22: 92.09210234 | P22: 4 | Q22: 96.09210234 | R22: 67.26447164 | S22: 84.2 | T22: 50.52 | U22: 100 | V22: 40 | W22: 90.52 | Y22: 90.52 | Z22: 9.052 | AA22: 102.0322101 | AB22: 100%
A23: 21 | B23: 2016010624 | C23: 李同 | D23: 99.63115385 | E23: 59.77869231 | F23: 100 | G23: 40 | H23: 15.45 | I23: 115.2286923 | J23: 23.04573846 | K23: 88.56896552 | L23: 70.85517241 | M23: 86.82758621 | N23: 17.36551724 | O23: 88.22068966 | Q23: 88.22068966 | R23: 61.75448276 | S23: 70.8 | T23: 42.48 | U23: 100 | V23: 40 | W23: 82.48 | Y23: 82.48 | Z23: 8.248 | AA23: 93.04822122 | AB23: 93%
A24: 22 | B24: 2016010625 | C24: 吴航飞 | D24: 99.63115385 | E24: 59.77869231 | F24: 100 | G24: 40 | H24: 12 | I24: 111.7786923 | J24: 22.35573846 | K24: 75.25757576 | L24: 60.20606061 | M24: 72.15384615 | N24: 14.43076923 | O24: 74.63682984 | Q24: 74.63682984 | R24: 52.24578089 | S24: 66.3 | T24: 39.78 | U24: 100 | V24: 40 | W24: 79.78 | Y24: 79.78 | Z24: 7.978 | AA24: 82.57951935 | AB24: 38%
A25: 23 | B25: 2016010626 | C25: 姚泽凯 | D25: 99.71448718 | E25: 59.82869231 | F25: 100 | G25: 40 | H25: 12 | I25: 111.8286923 | J25: 22.36573846 | K25: 79.18965517 | L25: 63.35172414 | M25: 80.83870968 | N25: 16.16774194 | O25: 79.51946607 | Q25: 79.51946607 | R25: 55.66362625 | S25: 81.2 | T25: 48.72 | U25: 100 | V25: 40 | W25: 88.72 | Y25: 88.72 | Z25: 8.872 | AA25: 86.90136471 | AB25: 53%
A26: 24 | B26: 2016010627 | C26: 于鹏 | D26: 99.79782051 | E26: 59.87869231 | F26: 100 | G26: 40 | H26: 31.45 | I26: 131.3286923 | J26: 26.26573846 | K26: 72.59722222 | L26: 58.07777778 | M26: 73.81818182 | N26: 14.76363636 | O26: 72.84141414 | Q26: 72.84141414 | R26: 50.9889899 | S26: 76.4 | T26: 45.84 | U26: 100 | V26: 40 | W26: 85.84 | Y26: 85.84 | Z26: 8.584 | AA26: 85.83872836 | AB26: 24%
A27: 25 | B27: 2016010628 | C27: 扎西多吉 | D27: 99.75615385 | E27: 59.85369231 | F27: 100 | G27: 40 | H27: 12 | I27: 111.8536923 | J27: 22.37073846 | K27: 59.75949367 | L27: 47.80759494 | M27: 61.35483871 | N27: 12.27096774 | O27: 60.07856268 | Q27: 60.07856268 | R27: 42.05499388 | S27: 77.8 | T27: 46.68 | U27: 100 | V27: 40 | W27: 86.68 | Y27: 86.68 | Z27: 8.668 | AA27: 73.09373234 | AB27: 12%
A28: 26 | B28: 2016010629 | C28: 边泽晨 | D28: 99.67717949 | E28: 59.80630769 | F28: 100 | G28: 40 | H28: 0 | I28: 99.80630769 | J28: 19.96126154 | K28: 78.15517241 | L28: 62.52413793 | M28: 80.63636364 | N28: 16.12727273 | O28: 78.65141066 | Q28: 78.65141066 | R28: 55.05598746 | S28: 83.4 | T28: 50.04 | U28: 100 | V28: 40 | W28: 90.04 | Y28: 90.04 | Z28: 9.004 | AA28: 84.021249 | AB28: 73%
A29: 27 | B29: 2016010630 | C29: 曹佳美 | D29: 99.67717949 | E29: 59.80630769 | F29: 100 | G29: 40 | H29: 4 | I29: 103.8063077 | J29: 20.76126154 | K29: 81.29310345 | L29: 65.03448276 | M29: 81.20689655 | N29: 16.24137931 | O29: 81.27586207 | Q29: 81.27586207 | R29: 56.89310345 | S29: 80.6 | T29: 48.36 | U29: 100 | V29: 40 | W29: 88.36 | Y29: 88.36 | Z29: 8.836 | AA29: 86.49036499 | AB29: 73%
A30: 28 | B30: 2016010631 | C30: 丁怀玉 | D30: 99.63717949 | E30: 59.78230769 | F30: 100 | G30: 40 | H30: 7 | I30: 106.7823077 | J30: 21.35646154 | K30: 86.82758621 | L30: 69.46206897 | M30: 85 | N30: 17 | O30: 86.46206897 | Q30: 86.46206897 | R30: 60.52344828 | S30: 80 | T30: 48 | U30: 100 | V30: 40 | W30: 88 | Y30: 88 | Z30: 8.8 | AA30: 90.67990981 | AB30: 93%
A31: 29 | B31: 2016010632 | C31: 符琳 | D31: 99.75717949 | E31: 59.85430769 | F31: 100 | G31: 40 | H31: 6.4 | I31: 106.2543077 | J31: 21.25086154 | K31: 81.13793103 | L31: 64.91034483 | M31: 83.09090909 | N31: 16.61818182 | O31: 81.52852665 | Q31: 81.52852665 | R31: 57.06996865 | S31: 62.7 | T31: 37.62 | U31: 100 | V31: 40 | W31: 77.62 | Y31: 77.62 | Z31: 7.762 | AA31: 86.08283019 | AB31: 60%
A32: 30 | B32: 2016010634 | C32: 李桂存 | D32: 99.47717949 | E32: 59.68630769 | F32: 75 | G32: 30 | H32: 0.4 | I32: 90.08630769 | J32: 18.01726154 | K32: 68.10344828 | L32: 54.48275862 | M32: 78.71428571 | N32: 15.74285714 | O32: 70.22561576 | Q32: 70.22561576 | R32: 49.15793103 | S32: 75.4 | T32: 45.24 | U32: 100 | V32: 40 | W32: 85.24 | Y32: 85.24 | Z32: 8.524 | AA32: 75.69919257 | AB32: 43% | AC32: 是
A33: 31 | B33: 2016010635 | C33: 李昕 | D33: 99.79717949 | E33: 59.87830769 | F33: 100 | G33: 40 | H33: 3.4 | I33: 103.2783077 | J33: 20.65566154 | K33: 83.86206897 | L33: 67.08965517 | M33: 82.24137931 | N33: 16.44827586 | O33: 83.53793103 | P33: 3.333333333 | Q33: 86.87126437 | R33: 60.80988506 | S33: 77.2 | T33: 46.32 | U33: 100 | V33: 40 | W33: 86.32 | Y33: 86.32 | Z33: 8.632 | AA33: 90.0975466 | AB33: 93%
A34: 32 | B34: 2016010636 | C34: 刘吉东 | D34: 99.67717949 | E34: 59.80630769 | F34: 100 | G34: 40 | H34: 4.2 | I34: 104.0063077 | J34: 20.80126154 | K34: 81.82258065 | L34: 65.45806452 | M34: 80.02702703 | N34: 16.00540541 | O34: 81.46346992 | Q34: 81.46346992 | R34: 57.02442895 | S34: 80 | T34: 48 | U34: 100 | V34: 40 | W34: 88 | Y34: 88 | Z34: 8.8 | AA34: 86.62569048 | AB34: 75%
A35: 33 | B35: 2016010637 | C35: 刘姝羽 | D35: 99.63717949 | E35: 59.78230769 | F35: 100 | G35: 40 | H35: 8.8 | I35: 108.5823077 | J35: 21.71646154 | K35: 84.29310345 | L35: 67.43448276 | M35: 85.89655172 | N35: 17.17931034 | O35: 84.6137931 | P35: 1 | Q35: 85.6137931 | R35: 59.92965517 | S35: 75.3 | T35: 45.18 | U35: 100 | V35: 40 | W35: 85.18 | X35: 35 | Y35: 120.18 | Z35: 12.018 | AA35: 93.66411671 | AB35: 87%
A36: 34 | B36: 2016010638 | C36: 陆文懿 | D36: 99.63717949 | E36: 59.78230769 | F36: 100 | G36: 40 | H36: 4.6 | I36: 104.3823077 | J36: 20.87646154 | K36: 83.74137931 | L36: 66.99310345 | M36: 88.02564103 | N36: 17.60512821 | O36: 84.59823165 | P36: 4.5 | Q36: 89.09823165 | R36: 62.36876216 | S36: 79.5 | T36: 47.7 | U36: 100 | V36: 40 | W36: 87.7 | X36: 5.333333333 | Y36: 93.03333333 | Z36: 9.303333333 | AA36: 92.54855703 | AB36: 73%
A37: 35 | B37: 2016010639 | C37: 穆合塔巴尔·玉素甫 | D37: 99.15717949 | E37: 59.49430769 | F37: 100 | G37: 40 | H37: 4 | I37: 103.4943077 | J37: 20.69886154 | K37: 75.27586207 | L37: 60.22068966 | M37: 79.24137931 | N37: 15.84827586 | O37: 76.06896552 | Q37: 76.06896552 | R37: 53.24827586 | S37: 69.2 | T37: 41.52 | U37: 100 | V37: 40 | W37: 81.52 | Y37: 81.52 | Z37: 8.152 | AA37: 82.0991374 | AB37: 53%
A38: 36 | B38: 2016010640 | C38: 宋艳珂 | D38: 99.71717949 | E38: 59.83030769 | F38: 100 | G38: 40 | H38: 6.25 | I38: 106.0803077 | J38: 21.21606154 | K38: 86.96551724 | L38: 69.57241379 | M38: 83.75862069 | N38: 16.75172414 | O38: 86.32413793 | Q38: 86.32413793 | R38: 60.42689655 | S38: 82.6 | T38: 49.56 | U38: 100 | V38: 40 | W38: 89.56 | Y38: 89.56 | Z38: 8.956 | AA38: 90.59895809 | AB38: 87%
A39: 37 | B39: 2016010641 | C39: 通拉嘎 | D39: 99.71717949 | E39: 59.83030769 | F39: 90 | G39: 36 | H39: 7.45 | I39: 103.2803077 | J39: 20.65606154 | K39: 78.51724138 | L39: 62.8137931 | M39: 84.32258065 | N39: 16.86451613 | O39: 79.67830923 | Q39: 79.67830923 | R39: 55.77481646 | S39: 76.2 | T39: 45.72 | U39: 100 | V39: 40 | W39: 85.72 | Y39: 85.72 | Z39: 8.572 | AA39: 85.002878 | AB39: 60%
A40: 38 | B40: 2016010642 | C40: 王存璐 | D40: 99.63717949 | E40: 59.78230769 | F40: 100 | G40: 40 | H40: 6.4 | I40: 106.1823077 | J40: 21.23646154 | K40: 82.9137931 | L40: 66.33103448 | M40: 89.81395349 | N40: 17.9627907 | O40: 84.29382518 | P40: 1 | Q40: 85.29382518 | R40: 59.70567763 | S40: 70.8 | T40: 42.48 | U40: 100 | V40: 40 | W40: 82.48 | Y40: 82.48 | Z40: 8.248 | AA40: 89.19013916 | AB40: 73%
A41: 39 | B41: 2016010643 | C41: 张婷婷 | D41: 99.47717949 | E41: 59.68630769 | F41: 100 | G41: 40 | H41: 0.4 | I41: 100.0863077 | J41: 20.01726154 | K41: 77.68965517 | L41: 62.15172414 | M41: 77.14285714 | N41: 15.42857143 | O41: 77.58029557 | Q41: 77.58029557 | R41: 54.3062069 | S41: 81 | T41: 48.6 | U41: 100 | V41: 40 | W41: 88.6 | X41: 6 | Y41: 94.6 | Z41: 9.46 | AA41: 83.78346844 | AB41: 47%
A42: 40 | B42: 2016010644 | C42: 曹刘俊 | D42: 99.71717949 | E42: 59.83030769 | F42: 100 | G42: 40 | H42: 0.4 | I42: 100.2303077 | J42: 20.04606154 | K42: 81.13793103 | L42: 64.91034483 | M42: 76.08108108 | N42: 15.21621622 | O42: 80.12656104 | P42: 1 | Q42: 81.12656104 | R42: 56.78859273 | S42: 61.7 | T42: 37.02 | U42: 100 | V42: 40 | W42: 77.02 | Y42: 77.02 | Z42: 7.702 | AA42: 84.53665427 | AB42: 67%
A43: 41 | B43: 2016010645 | C43: 程昊 | D43: 99.59717949 | E43: 59.75830769 | F43: 100 | G43: 40 | H43: 0.4 | I43: 100.1583077 | J43: 20.03166154 | K43: 76.94827586 | L43: 61.55862069 | M43: 78.3030303 | N43: 15.66060606 | O43: 77.21922675 | Q43: 77.21922675 | R43: 54.05345873 | S43: 70.3 | T43: 42.18 | U43: 100 | V43: 40 | W43: 82.18 | Y43: 82.18 | Z43: 8.218 | AA43: 82.30312026 | AB43: 40%
A44: 42 | B44: 2016010646 | C44: 耿錾卜 | D44: 99.59717949 | E44: 59.75830769 | F44: 100 | G44: 40 | H44: 1.9 | I44: 101.6583077 | J44: 20.33166154 | K44: 80.86206897 | L44: 64.68965517 | M44: 83.06896552 | N44: 16.6137931 | O44: 81.30344828 | Q44: 81.30344828 | R44: 56.91241379 | S44: 66 | T44: 39.6 | U44: 100 | V44: 40 | W44: 79.6 | Y44: 79.6 | Z44: 7.96 | AA44: 85.20407533 | AB44: 60%
A45: 43 | B45: 2016010647 | C45: 郭全弟 | D45: 99.75717949 | E45: 59.85430769 | F45: 100 | G45: 40 | H45: 3.4 | I45: 103.2543077 | J45: 20.65086154 | K45: 84.27586207 | L45: 67.42068966 | M45: 84.48275862 | N45: 16.89655172 | O45: 84.31724138 | Q45: 84.31724138 | R45: 59.02206897 | S45: 66.4 | T45: 39.84 | U45: 100 | V45: 40 | W45: 79.84 | Y45: 79.84 | Z45: 7.984 | AA45: 87.6569305 | AB45: 87%
A46: 44 | B46: 2016010648 | C46: 李正映 | D46: 99.95717949 | E46: 59.97430769 | F46: 100 | G46: 40 | H46: 8.4 | I46: 108.3743077 | J46: 21.67486154 | K46: 84.24137931 | L46: 67.39310345 | M46: 82.5106383 | N46: 16.50212766 | O46: 83.89523111 | P46: 6 | Q46: 89.89523111 | R46: 62.92666178 | S46: 80.9 | T46: 48.54 | U46: 100 | V46: 40 | W46: 88.54 | Y46: 88.54 | Z46: 8.854 | AA46: 93.45552331 | AB46: 87%
A47: 45 | B47: 2016010649 | C47: 马学成 | D47: 99.59717949 | E47: 59.75830769 | F47: 95 | G47: 38 | H47: 0.4 | I47: 98.15830769 | J47: 19.63166154 | K47: 63.42857143 | L47: 50.74285714 | M47: 63.4516129 | N47: 12.69032258 | O47: 63.43317972 | Q47: 63.43317972 | R47: 44.40322581 | S47: 74.3 | T47: 44.58 | U47: 100 | V47: 40 | W47: 84.58 | X47: 2 | Y47: 86.58 | Z47: 8.658 | AA47: 72.69288734 | AB47: 6% | AC47: 是
A48: 46 | B48: 2016010651 | C48: 孙寅辉 | D48: 99.59717949 | E48: 59.75830769 | F48: 100 | G48: 40 | H48: 1.65 | I48: 101.4083077 | J48: 20.28166154 | K48: 71.296875 | L48: 57.0375 | M48: 67.51724138 | N48: 13.50344828 | O48: 70.54094828 | Q48: 70.54094828 | R48: 49.37866379 | S48: 58.6 | T48: 35.16 | U48: 100 | V48: 40 | W48: 75.16 | Y48: 75.16 | Z48: 7.516 | AA48: 77.17632533 | AB48: 38%
A49: 47 | B49: 2016010653 | C49: 王昆 | D49: 99.35717949 | E49: 59.61430769 | F49: 84 | G49: 33.6 | H49: 0.4 | I49: 93.61430769 | J49: 18.72286154 | K49: 64.65079365 | L49: 51.72063492 | M49: 71.51724138 | N49: 14.30344828 | O49: 66.0240832 | Q49: 66.0240832 | R49: 46.21685824 | S49: 62.3 | T49: 37.38 | U49: 100 | V49: 40 | W49: 77.38 | Y49: 77.38 | Z49: 7.738 | AA49: 72.67771978 | AB49: 6% | AC49: 是
A50: 48 | B50: 2016010655 | C50: 温博 | D50: 99.63717949 | E50: 59.78230769 | F50: 84 | G50: 33.6 | H50: 3 | I50: 96.38230769 | J50: 19.27646154 | K50: 58.46969697 | L50: 46.77575758 | M50: 64 | N50: 12.8 | O50: 59.57575758 | Q50: 59.57575758 | R50: 41.7030303 | S50: 79.1 | T50: 47.46 | U50: 100 | V50: 40 | W50: 87.46 | Y50: 87.46 | Z50: 8.746 | AA50: 69.72549184 | AB50: 13% | AC50: 是
A51: 49 | B51: 2016010656 | C51: 肖耀 | D51: 99.51717949 | E51: 59.71030769 | F51: 95 | G51: 38 | H51: 4 | I51: 101.7103077 | J51: 20.34206154 | K51: 68.72727273 | L51: 54.98181818 | M51: 69.5862069 | N51: 13.91724138 | O51: 68.89905956 | Q51: 68.89905956 | R51: 48.22934169 | S51: 71.1 | T51: 42.66 | U51: 100 | V51: 40 | W51: 82.66 | Y51: 82.66 | Z51: 8.266 | AA51: 76.83740323 | AB51: 25% | AC51: 是
A52: 50 | B52: 2016010657 | C52: 依斯安·喀迪尔 | D52: 99.79717949 | E52: 59.87830769 | F52: 100 | G52: 40 | H52: 4.8 | I52: 104.6783077 | J52: 20.93566154 | K52: 72.56060606 | L52: 58.04848485 | M52: 79.12121212 | N52: 15.82424242 | O52: 73.87272727 | Q52: 73.87272727 | R52: 51.71090909 | S52: 75.4 | T52: 45.24 | U52: 100 | V52: 40 | W52: 85.24 | X52: 2 | Y52: 87.24 | Z52: 8.724 | AA52: 81.37057063 | AB52: 31% | AC52: 是
A53: 51 | B53: 2016010658 | C53: 於越 | D53: 99.03717949 | E53: 59.42230769 | F53: 90 | G53: 36 | H53: 3.4 | I53: 98.82230769 | J53: 19.76446154 | K53: 67.34482759 | L53: 53.87586207 | M53: 65.24137931 | N53: 13.04827586 | O53: 66.92413793 | Q53: 66.92413793 | R53: 46.84689655 | S53: 57.2 | T53: 34.32 | U53: 100 | V53: 40 | W53: 74.32 | Y53: 74.32 | Z53: 7.432 | AA53: 74.04335809 | AB53: 27% | AC53: 是

Sheet 化学工程与工艺2016级
A1: 序号 | B1: 学号 | C1: 姓名 | D1: 德育成绩 | K1: 智育成绩 | Q1: 体育成绩 | V1: 综合测评总分 | X1: 是否挂科
D2: 班级互评分 | E2: 班级互评分×0.6 | F2: 辅导员打分 | G2: 辅导员打分×0.4 | H2: 德育加分 | I2: 德育成绩 | J2: 德育成绩×0.2 | K2: 必修课加权平均分 | L2: 选修课加权平均分 | M2: 智育成绩（必修课×0.8+选修课×0.2） | N2: 智育加分 | O2: 智育成绩 | P2: 智育成绩×0.7 | Q2: 体育课成绩 | R2: 体育加分 | S2: 平时锻炼成绩 | T2: 体育成绩 | U2: 体育成绩×0.1 | W2: 优良率
A3: 1 | B3: 2016010400 | C3: 丁婉艳 | D3: 99.06060606 | E3: =D3*0.6 -> 59.43636364 | F3: 100 | G3: =F3*0.4 -> 40 | H3: 0.8 | I3: =E3+G3+H3 -> 100.2363636 | J3: =I3*0.2 -> 20.04727273 | K3: 88.98571429 | L3: 89 | M3: =0.8*K3+0.2*L3 -> 88.98857143 | O3: =M3+N3 -> 88.98857143 | P3: =O3*0.7 -> 62.292 | Q3: 76.6 | S3: 100 | T3: =R3+Q3*0.6+S3*0.4 -> 85.96 | U3: =0.1*T3 -> 8.596 | V3: =J3+P3+U3 -> 90.93527273 | W3: 100.00% | X3: 否
A4: 2 | B4: 2016010401 | C4: 冯江丽 | D4: 99.12121212 | E4: 59.47272727 | F4: 100 | G4: 40 | I4: 99.47272727 | J4: 19.89454545 | K4: 90.88571429 | L4: 92.66666667 | M4: 91.24190476 | N4: 6 | O4: 97.24190476 | P4: 68.06933333 | Q4: 78.2 | S4: 100 | T4: =R4+Q4*0.6+S4*0.4 -> 86.92 | U4: =0.1*T4 -> 8.692 | V4: 96.65587879 | W4: 100.00% | X4: 否
A5: 3 | B5: 2016010402 | C5: 林润丹 | D5: 99.12121212 | E5: 59.47272727 | F5: 100 | G5: 40 | H5: 3 | I5: 102.4727273 | J5: 20.49454545 | K5: 81.2 | L5: 85 | M5: 81.96 | O5: 81.96 | P5: 57.372 | Q5: 76 | S5: 100 | T5: 85.6 | U5: 8.56 | V5: 86.42654545 | W5: 62.50% | X5: 否
A6: 4 | B6: 2016010403 | C6: 刘婉琪 | D6: 99.03030303 | E6: 59.41818182 | F6: 100 | G6: 40 | H6: 3 | I6: 102.4181818 | J6: 20.48363636 | K6: 84.94285714 | L6: 89.85714286 | M6: 85.92571429 | O6: 85.92571429 | P6: 60.148 | Q6: 72.4 | S6: 100 | T6: 83.44 | U6: 8.344 | V6: 88.97563636 | W6: 87.50% | X6: 否
A7: 5 | B7: 2016010404 | C7: 毛姣 | D7: 99.3030303 | E7: 59.58181818 | F7: 100 | G7: 40 | I7: 99.58181818 | J7: 19.91636364 | K7: 84.17142857 | L7: 82.47058824 | M7: 83.8312605 | O7: 83.8312605 | P7: 58.68188235 | Q7: 64.8 | S7: 100 | T7: 78.88 | U7: 7.888 | V7: 86.48624599 | W7: 87.50% | X7: 否
A8: 6 | B8: 2016010405 | C8: 裴红静 | D8: 99 | E8: 59.4 | F8: 95 | G8: 38 | H8: 3 | I8: 100.4 | J8: 20.08 | K8: 79.32857143 | L8: 82.07692308 | M8: 79.87824176 | O8: 79.87824176 | P8: 55.91476923 | Q8: 73.2 | S8: 100 | T8: 83.92 | U8: 8.392 | V8: 84.38676923 | W8: 68.75% | X8: 是
A9: 7 | B9: 2016010406 | C9: 盛奕琪 | D9: 99.24242424 | E9: 59.54545455 | F9: 100 | G9: 40 | I9: 99.54545455 | J9: 19.90909091 | K9: 87.35714286 | L9: 89.08333333 | M9: 87.70238095 | N9: 6 | O9: 93.70238095 | P9: 65.59166667 | Q9: 69.6 | S9: 100 | T9: 81.76 | U9: 8.176 | V9: 93.67675758 | W9: 87.50% | X9: 否
A10: 8 | B10: 2016010407 | C10: 塔娜 | D10: 99.33333333 | E10: 59.6 | F10: 100 | G10: 40 | H10: 11.25 | I10: 110.85 | J10: 22.17 | K10: 81.57142857 | L10: 81.41666667 | M10: 81.54047619 | N10: 1 | O10: 82.54047619 | P10: 57.77833333 | Q10: 71.6 | S10: 100 | T10: 82.96 | U10: 8.296 | V10: 88.24433333 | W10: 81.25% | X10: 否
A11: 9 | B11: 2016010408 | C11: 王超男 | D11: 99.3030303 | E11: 59.58181818 | F11: 100 | G11: 40 | H11: 6 | I11: 105.5818182 | J11: 21.11636364 | K11: 78.7 | L11: 82.28571429 | M11: 79.41714286 | N11: 1 | O11: 80.41714286 | P11: 56.292 | Q11: 76.4 | S11: 100 | T11: 85.84 | U11: 8.584 | V11: 85.99236364 | W11: 56.25% | X11: 否
A12: 10 | B12: 2016010409 | C12: 王筝 | D12: 99.03030303 | E12: 59.41818182 | F12: 80 | G12: 32 | H12: 3 | I12: 94.41818182 | J12: 18.88363636 | K12: 63.26495726 | L12: 67.5 | M12: 64.11196581 | O12: 64.11196581 | P12: 44.87837607 | Q12: 77.4 | S12: 100 | T12: 86.44 | U12: 8.644 | V12: 72.40601243 | W12: 31.25% | X12: 是
A13: 11 | B13: 2016010410 | C13: 安毅帆 | D13: 99.12121212 | E13: 59.47272727 | F13: 100 | G13: 40 | I13: 99.47272727 | J13: 19.89454545 | K13: 76.63855422 | L13: 79.25 | M13: 77.16084337 | O13: 77.16084337 | P13: 54.01259036 | Q13: 61.1 | S13: 100 | T13: 76.66 | U13: 7.666 | V13: 81.57313582 | W13: 75.00% | X13: 否
A14: 12 | B14: 2016010411 | C14: 崔世彤 | D14: 99.27272727 | E14: 59.56363636 | F14: 100 | G14: 40 | I14: 99.56363636 | J14: 19.91272727 | K14: 92.04285714 | L14: 93.76923077 | M14: 92.38813187 | N14: 42.697 | O14: 135.0851319 | P14: 94.55959231 | Q14: 64.2 | S14: 100 | T14: 78.52 | U14: 7.852 | V14: 122.3243196 | W14: 100.00% | X14: 否
A15: 13 | B15: 2016010412 | C15: 冯晨 | D15: 99.06060606 | E15: 59.43636364 | F15: 100 | G15: 40 | I15: 99.43636364 | J15: 19.88727273 | K15: 77.77142857 | L15: 75.83333333 | M15: 77.38380952 | O15: 77.38380952 | P15: 54.16866667 | Q15: 73.5 | S15: 100 | T15: 84.1 | U15: 8.41 | V15: 82.46593939 | W15: 50.00% | X15: 否
A16: 14 | B16: 2016010413 | C16: 高浩然 | D16: 99.06060606 | E16: 59.43636364 | F16: 100 | G16: 40 | H16: 6 | I16: 105.4363636 | J16: 21.08727273 | K16: 78.84285714 | L16: 83.52941176 | M16: 79.78016807 | N16: 3 | O16: 82.78016807 | P16: 57.94611765 | Q16: 69.1 | S16: 100 | T16: 81.46 | U16: 8.146 | V16: 87.17939037 | W16: 75.00% | X16: 否
A17: 15 | B17: 2016010414 | C17: 韩博 | D17: 99.09090909 | E17: 59.45454545 | F17: 100 | G17: 40 | H17: 16.8 | I17: 116.2545455 | J17: 23.25090909 | K17: 75.58571429 | L17: 79.11111111 | M17: 76.29079365 | O17: 76.29079365 | P17: 53.40355556 | Q17: 72.2 | S17: 100 | T17: 83.32 | U17: 8.332 | V17: 84.98646465 | W17: 56.25% | X17: 是
A18: 16 | B18: 2016010415 | C18: 黄鑫 | D18: 99 | E18: 59.4 | F18: 95 | G18: 38 | H18: 3 | I18: 100.4 | J18: 20.08 | K18: 75.05434783 | L18: 76 | M18: 75.24347826 | O18: 75.24347826 | P18: 52.67043478 | Q18: 73 | S18: 100 | T18: 83.8 | U18: 8.38 | V18: 81.13043478 | W18: 50.00% | X18: 是
A19: 17 | B19: 2016010416 | C19: 江俊懿 | D19: 98.96969697 | E19: 59.38181818 | F19: 85 | G19: 34 | H19: 3 | I19: 96.38181818 | J19: 19.27636364 | K19: 68.10416667 | L19: 75.07142857 | M19: 69.49761905 | O19: 69.49761905 | P19: 48.64833333 | Q19: 52.3 | S19: 100 | T19: 71.38 | U19: 7.138 | V19: 75.06269697 | W19: 12.50% | X19: 是
A20: 18 | B20: 2016010417 | C20: 李彬 | D20: 98.81818182 | E20: 59.29090909 | F20: 80 | G20: 32 | H20: 3 | I20: 94.29090909 | J20: 18.85818182 | K20: 63.54455446 | L20: 73.57894737 | M20: 65.55143304 | O20: 65.55143304 | P20: 45.88600313 | Q20: 70.1 | S20: 100 | T20: 82.06 | U20: 8.206 | V20: 72.95018494 | W20: 31.25% | X20: 是
A21: 19 | B21: 2016010418 | C21: 李飞扬 | D21: 98.84848485 | E21: 59.30909091 | F21: 100 | G21: 40 | H21: 3 | I21: 102.3090909 | J21: 20.46181818 | K21: 71.93243243 | L21: 72.66666667 | M21: 72.07927928 | O21: 72.07927928 | P21: 50.4554955 | Q21: 60.6 | S21: 100 | T21: 76.36 | U21: 7.636 | V21: 78.55331368 | W21: 31.25% | X21: 否
A22: 20 | B22: 2016010419 | C22: 刘展 | D22: 99.03030303 | E22: 59.41818182 | F22: 90 | G22: 36 | I22: 95.41818182 | J22: 19.08363636 | K22: 65.62650602 | L22: 66.23529412 | M22: 65.74826364 | O22: 65.74826364 | P22: 46.02378455 | Q22: 64 | S22: 100 | T22: 78.4 | U22: 7.84 | V22: 72.94742091 | W22: 6.25% | X22: 是
A23: 21 | B23: 2016010420 | C23: 农谨毓 | D23: 99 | E23: 59.4 | F23: 100 | G23: 40 | H23: 3 | I23: 102.4 | J23: 20.48 | K23: 74.67142857 | L23: 80.36363636 | M23: 75.80987013 | O23: 75.80987013 | P23: 53.06690909 | Q23: 70.6 | S23: 100 | T23: 82.36 | U23: 8.236 | V23: 81.78290909 | W23: 43.75% | X23: 否
A24: 22 | B24: 2016010421 | C24: 孙维峰 | D24: 98.90909091 | E24: 59.34545455 | F24: 90 | G24: 36 | H24: 3 | I24: 98.34545455 | J24: 19.66909091 | K24: 65.56470588 | L24: 71.70588235 | M24: 66.79294118 | O24: 66.79294118 | P24: 46.75505882 | Q24: 66.6 | S24: 100 | T24: 79.96 | U24: 7.996 | V24: 74.42014973 | W24: 25.00% | X24: 是
A25: 23 | B25: 2016010422 | C25: 王浩程 | D25: 98.84848485 | E25: 59.30909091 | F25: 100 | G25: 40 | H25: 3.7 | I25: 103.0090909 | J25: 20.60181818 | K25: 71.60465116 | L25: 72.58333333 | M25: 71.8003876 | O25: 71.8003876 | P25: 50.26027132 | Q25: 70.9 | R25: 2 | S25: 100 | T25: 84.54 | U25: 8.454 | V25: 79.3160895 | W25: 25.00% | X25: 否
A26: 24 | B26: 2016010424 | C26: 杨浩轩 | D26: 99.12121212 | E26: 59.47272727 | F26: 100 | G26: 40 | I26: 99.47272727 | J26: 19.89454545 | K26: 83.68571429 | L26: 87.52631579 | M26: 84.45383459 | N26: 4 | O26: 88.45383459 | P26: 61.91768421 | Q26: 61.9 | S26: 100 | T26: 77.14 | U26: 7.714 | V26: 89.52622967 | W26: 87.50% | X26: 否
A27: 25 | B27: 2016010425 | C27: 袁俊涛 | D27: 99.24242424 | E27: 59.54545455 | F27: 100 | G27: 40 | I27: 99.54545455 | J27: 19.90909091 | K27: 86.2 | L27: 85.4 | M27: 86.04 | N27: 4.5 | O27: 90.54 | P27: 63.378 | Q27: 74.7 | S27: 100 | T27: 84.82 | U27: 8.482 | V27: 91.76909091 | W27: 87.50% | X27: 否
A28: 26 | B28: 2016010426 | C28: 张成霄 | D28: 99 | E28: 59.4 | F28: 100 | G28: 40 | I28: 99.4 | J28: 19.88 | K28: 86.62857143 | L28: 87.85 | M28: 86.87285714 | N28: 4 | O28: 90.87285714 | P28: 63.611 | Q28: 67 | S28: 100 | T28: 80.2 | U28: 8.02 | V28: 91.511 | W28: 100.00% | X28: 否
A29: 27 | B29: 2016010427 | C29: 张创杰 | D29: 98.93939394 | E29: 59.36363636 | F29: 90 | G29: 36 | I29: 95.36363636 | J29: 19.07272727 | K29: 69.6744186 | L29: 71.70588235 | M29: 70.08071135 | O29: 70.08071135 | P29: 49.05649795 | Q29: 69.7 | S29: 100 | T29: 81.82 | U29: 8.182 | V29: 76.31122522 | W29: 31.25% | X29: 是
A30: 28 | B30: 2016010428 | C30: 张帅 | D30: 99 | E30: 59.4 | F30: 100 | G30: 40 | H30: 6 | I30: 105.4 | J30: 21.08 | K30: 80.17142857 | L30: 73.75 | M30: 78.88714286 | N30: 6 | O30: 84.88714286 | P30: 59.421 | Q30: 64 | S30: 100 | T30: 78.4 | U30: 7.84 | V30: 88.341 | W30: 56.25% | X30: 否
A31: 29 | B31: 2016010429 | C31: 张文静 | D31: 98.90909091 | E31: 59.34545455 | F31: 100 | G31: 40 | I31: 99.34545455 | J31: 19.86909091 | K31: 78.07142857 | L31: 82.78571429 | M31: 79.01428571 | O31: 79.01428571 | P31: 55.31 | Q31: 71 | S31: 100 | T31: 82.6 | U31: 8.26 | V31: 83.43909091 | W31: 50.00% | X31: 否
A32: 30 | B32: 2016010431 | C32: 张新意 | D32: 99 | E32: 59.4 | F32: 100 | G32: 40 | H32: 8 | I32: 107.4 | J32: 21.48 | K32: 85.84285714 | L32: 85.46666667 | M32: 85.76761905 | N32: 32.33333 | O32: 118.100949 | P32: 82.67066433 | Q32: 60 | S32: 100 | T32: 76 | U32: 7.6 | V32: 111.7506643 | W32: 93.75% | X32: 否
A33: 31 | B33: 2016010432 | C33: 左长江 | D33: 99.15151515 | E33: 59.49090909 | F33: 100 | G33: 40 | I33: 99.49090909 | J33: 19.89818182 | K33: 87.62857143 | L33: 90.85714286 | M33: 88.27428571 | N33: 15 | O33: 103.2742857 | P33: 72.292 | Q33: 62.8 | S33: 100 | T33: 77.68 | U33: 7.768 | V33: 99.95818182 | W33: 93.75% | X33: 否
A34: 32 | B34: 2016010554 | C34: 王昊天 | D34: 98.6969697 | E34: 59.21818182 | F34: 95 | G34: 38 | I34: 97.21818182 | J34: 19.44363636 | K34: 67.54285714 | L34: 74.21428571 | M34: 68.87714286 | O34: 68.87714286 | P34: 48.214 | Q34: 60 | R34: 10 | S34: 100 | T34: 86 | U34: 8.6 | V34: 76.25763636 | W34: 12.50% | X34: 是
A35: 33 | B35: 2016010433 | C35: 韩子怡 | D35: 99.59375 | E35: 59.75625 | F35: 100 | G35: 40 | I35: 99.75625 | J35: 19.95125 | K35: 79.3125 | L35: 84.72727273 | M35: =K35*0.8+L35*0.2 -> 80.39545455 | O35: 80.39545455 | P35: 56.27681818 | Q35: 71.5 | S35: 100 | T35: 82.9 | U35: 8.29 | V35: 84.51806818 | W35: 43.75% | X35: 否
A36: 34 | B36: 2016010434 | C36: 胡淑文 | D36: 99.59375 | E36: 59.75625 | F36: 100 | G36: 40 | I36: 99.75625 | J36: 19.95125 | K36: 83.82432432 | L36: 82.77777778 | M36: 83.61501502 | O36: 83.61501502 | P36: 58.53051051 | Q36: 71.4 | S36: 100 | T36: 82.84 | U36: 8.284 | V36: 86.76576051 | W36: 81.25% | X36: 否
A37: 35 | B37: 2016010435 | C37: 寇晓玮 | D37: 99.625 | E37: 59.775 | F37: 75 | G37: 30 | I37: 89.775 | J37: 17.955 | K37: 72.86585366 | L37: 68.09090909 | M37: 71.91086475 | O37: 71.91086475 | P37: 50.33760532 | Q37: 78 | S37: 100 | T37: 86.8 | U37: 8.68 | V37: 76.97260532 | W37: 43.75% | X37: 是
A38: 36 | B38: 2016010437 | C38: 林甘棠 | D38: 99.53125 | E38: 59.71875 | F38: 79 | G38: 31.6 | I38: 91.31875 | J38: 18.26375 | K38: 62.83516484 | L38: 63.375 | M38: 62.94313187 | O38: 62.94313187 | P38: 44.06019231 | Q38: 74.6 | S38: 100 | T38: 84.76 | U38: 8.476 | V38: 70.79994231 | W38: 12.50% | X38: 是
A39: 37 | B39: 2016010438 | C39: 王璧琮 | D39: 99.4375 | E39: 59.6625 | F39: 100 | G39: 40 | H39: 5 | I39: 104.6625 | J39: 20.9325 | K39: 86.74242424 | L39: 89.08333333 | M39: 87.21060606 | N39: 12 | O39: 99.21060606 | P39: 69.44742424 | Q39: 86 | R39: 20 | S39: 100 | T39: 111.6 | U39: 11.16 | V39: 101.5399242 | W39: 93.75% | X39: 否
A40: 38 | B40: 2016010439 | C40: 王孟轩 | D40: 99.59375 | E40: 59.75625 | F40: 95 | G40: 38 | H40: 7 | I40: 104.75625 | J40: 20.95125 | K40: 70.25675676 | L40: 73.9 | M40: 70.98540541 | O40: 70.98540541 | P40: 49.68978378 | Q40: 78.4 | R40: 13.3333 | S40: 100 | T40: 100.3733 | U40: 10.03733 | V40: 80.67836378 | W40: 37.50% | X40: 是
A41: 39 | B41: 2016010441 | C41: 肖雯婷 | D41: 99.5625 | E41: 59.7375 | F41: 100 | G41: 40 | I41: 99.7375 | J41: 19.9475 | K41: 69.64864865 | L41: 70.85714286 | M41: 69.89034749 | O41: 69.89034749 | P41: 48.92324324 | Q41: 74 | S41: 100 | T41: 84.4 | U41: 8.44 | V41: 77.31074324 | W41: 37.50% | X41: 否
A42: 40 | B42: 2016010442 | C42: 许龄月 | D42: 99.21875 | E42: 59.53125 | F42: 70 | G42: 28 | I42: 87.53125 | J42: 17.50625 | K42: 68.28378378 | L42: 75.33333333 | M42: 69.69369369 | O42: 69.69369369 | P42: 48.78558559 | Q42: 66.1 | S42: 100 | T42: 79.66 | U42: 7.966 | V42: 74.25783559 | W42: 43.75% | X42: 是
A43: 41 | B43: 2016010444 | C43: 蔡进 | D43: 99.53125 | E43: 59.71875 | F43: 100 | G43: 40 | I43: 99.71875 | J43: 19.94375 | K43: 81.75675676 | L43: 85.22222222 | M43: 82.44984985 | O43: 82.44984985 | P43: 57.71489489 | Q43: 49.6 | S43: 100 | T43: 69.76 | U43: 6.976 | V43: 84.63464489 | W43: 68.75% | X43: 否
A44: 42 | B44: 2016010445 | C44: 操泰格 | D44: 99.03125 | E44: 59.41875 | F44: 100 | G44: 40 | I44: 99.41875 | J44: 19.88375 | K44: 86.62162162 | L44: 87.9375 | M44: 86.8847973 | N44: 12 | O44: 98.8847973 | P44: 69.21935811 | Q44: 60.4 | S44: 100 | T44: 76.24 | U44: 7.624 | V44: 96.72710811 | W44: 93.75% | X44: 否
A45: 43 | B45: 2016010446 | C45: 程小杰 | D45: 99.34375 | E45: 59.60625 | F45: 100 | G45: 40 | H45: 5 | I45: 104.60625 | J45: 20.92125 | K45: 85.06756757 | L45: 86 | M45: 85.25405405 | N45: 4 | O45: 89.25405405 | P45: 62.47783784 | Q45: 79.8 | S45: 100 | T45: 87.88 | U45: 8.788 | V45: 92.18708784 | W45: 81.25% | X45: 否
A46: 44 | B46: 2016010447 | C46: 方正 | D46: 99.46875 | E46: 59.68125 | F46: 100 | G46: 40 | H46: 15 | I46: 114.68125 | J46: 22.93625 | K46: 76.60810811 | L46: 81.81818182 | M46: 77.65012285 | N46: 3.33333 | O46: 80.98345285 | P46: 56.688417 | Q46: 72.5 | S46: 100 | T46: 83.5 | U46: 8.35 | V46: 87.974667 | W46: 43.75% | X46: 是
A47: 45 | B47: 2016010448 | C47: 付严 | D47: 99.53125 | E47: 59.71875 | F47: 100 | G47: 40 | I47: 99.71875 | J47: 19.94375 | K47: 61.97560976 | L47: 61.44444444 | M47: 61.86937669 | O47: 61.86937669 | P47: 43.30856369 | Q47: 63.1 | S47: 100 | T47: 77.86 | U47: 7.786 | V47: 71.03831369 | W47: 12.50% | X47: 是
A48: 46 | B48: 2016010449 | C48: 胡浩杰 | D48: 99.53125 | E48: 59.71875 | F48: 100 | G48: 40 | H48: 22.6 | I48: 122.31875 | J48: 24.46375 | K48: 85.33783784 | L48: 82.66666667 | M48: 84.8036036 | O48: 84.8036036 | P48: 59.36252252 | Q48: 82.5 | S48: 100 | T48: 89.5 | U48: 8.95 | V48: 92.77627252 | W48: 81.25% | X48: 否
A49: 47 | B49: 2016010450 | C49: 黄游晟 | D49: 99.6875 | E49: 59.8125 | F49: 100 | G49: 40 | H49: 15 | I49: 114.8125 | J49: 22.9625 | K49: 77.86486486 | L49: 74.4375 | M49: 77.17939189 | O49: 77.17939189 | P49: 54.02557432 | Q49: 78.6 | S49: 100 | T49: 87.16 | U49: 8.716 | V49: 85.70407432 | W49: 43.75% | X49: 否
A50: 48 | B50: 2016010451 | C50: 梁恒睿 | D50: 99.65625 | E50: 59.79375 | F50: 100 | G50: 40 | I50: 99.79375 | J50: 19.95875 | K50: 75.94594595 | L50: 74.77777778 | M50: 75.71231231 | O50: 75.71231231 | P50: 52.99861862 | Q50: 73 | S50: 100 | T50: 83.8 | U50: 8.38 | V50: 81.33736862 | W50: 43.75% | X50: 否
A51: 49 | B51: 2016010452 | C51: 刘盛琨 | D51: 99.6875 | E51: 59.8125 | F51: 100 | G51: 40 | H51: 5.93 | I51: 105.7425 | J51: 21.1485 | K51: 85.75675676 | L51: 83.33333333 | M51: 85.27207207 | N51: 8.16667 | O51: 93.43874207 | P51: 65.40711945 | Q51: 77.2 | S51: 100 | T51: 86.32 | U51: 8.632 | V51: 95.18761945 | W51: 93.75% | X51: 否
A52: 50 | B52: 2016010453 | C52: 刘旭 | D52: 99.625 | E52: 59.775 | F52: 100 | G52: 40 | H52: 4.6 | I52: 104.375 | J52: 20.875 | K52: 79.63513514 | L52: 77.64285714 | M52: 79.23667954 | O52: 79.23667954 | P52: 55.46567568 | Q52: 73.1 | S52: 100 | T52: 83.86 | U52: 8.386 | V52: 84.72667568 | W52: 68.75% | X52: 否
A53: 51 | B53: 2016010454 | C53: 鲁颖科 | D53: 99.6875 | E53: 59.8125 | F53: 100 | G53: 40 | I53: 99.8125 | J53: 19.9625 | K53: 77.95945946 | L53: 72.5 | M53: 76.86756757 | O53: 76.86756757 | P53: 53.8072973 | Q53: 60 | S53: 100 | T53: 76 | U53: 7.6 | V53: 81.3697973 | W53: 43.75% | X53: 否
A54: 52 | B54: 2016010455 | C54: 司道润 | D54: 99.625 | E54: 59.775 | F54: 100 | G54: 40 | I54: 99.775 | J54: 19.955 | K54: 84.7972973 | L54: 81.71428571 | M54: 84.18069498 | O54: 84.18069498 | P54: 58.92648649 | Q54: 75.1 | S54: 100 | T54: 85.06 | U54: 8.506 | V54: 87.38748649 | W54: 93.75% | X54: 否
A55: 53 | B55: 2016010456 | C55: 苏小刚 | D55: 99.65625 | E55: 59.79375 | F55: 100 | G55: 40 | H55: 3.8 | I55: 103.59375 | J55: 20.71875 | K55: 85.83783784 | L55: 86.90909091 | M55: 86.05208845 | N55: 4 | O55: 90.05208845 | P55: 63.03646192 | Q55: 74.1 | S55: 100 | T55: 84.46 | U55: 8.446 | V55: 92.20121192 | W55: 93.75% | X55: 否
A56: 54 | B56: 2016010457 | C56: 王宇超 | D56: 99.59375 | E56: 59.75625 | F56: 100 | G56: 40 | I56: 99.75625 | J56: 19.95125 | K56: 74.63513514 | L56: 77.07142857 | M56: 75.12239382 | O56: 75.12239382 | P56: 52.58567568 | Q56: 59.8 | S56: 100 | T56: 75.88 | U56: 7.588 | V56: 80.12492568 | W56: 43.75% | X56: 否
A57: 55 | B57: 2016010459 | C57: 徐凡 | D57: 99.6875 | E57: 59.8125 | F57: 100 | G57: 40 | H57: 4.4 | I57: 104.2125 | J57: 20.8425 | K57: 85.04054054 | L57: 80.72727273 | M57: 84.17788698 | N57: 4 | O57: 88.17788698 | P57: 61.72452088 | Q57: 69.3 | S57: 100 | T57: 81.58 | U57: 8.158 | V57: 90.72502088 | W57: 81.25% | X57: 否
A58: 56 | B58: 2016010460 | C58: 阳方喜 | D58: 99.65625 | E58: 59.79375 | F58: 100 | G58: 40 | I58: 99.79375 | J58: 19.95875 | K58: 75.21621622 | L58: 74.63636364 | M58: 75.1002457 | O58: 75.1002457 | P58: 52.57017199 | Q58: 72.2 | S58: 100 | T58: 83.32 | U58: 8.332 | V58: 80.86092199 | W58: 37.50% | X58: 否
A59: 57 | B59: 2016010461 | C59: 杨電 | D59: 99.40625 | E59: 59.64375 | F59: 100 | G59: 40 | I59: 99.64375 | J59: 19.92875 | K59: 72.44871795 | L59: 70.54545455 | M59: 72.06806527 | O59: 72.06806527 | P59: 50.44764569 | Q59: 77.3 | S59: 100 | T59: 86.38 | U59: 8.638 | V59: 79.01439569 | W59: 37.50% | X59: 否
A60: 58 | B60: 2016010462 | C60: 杨天宇 | D60: 99.59375 | E60: 59.75625 | F60: 80 | G60: 32 | I60: 91.75625 | J60: 18.35125 | K60: 64.9125 | L60: 67.25 | M60: 65.38 | O60: 65.38 | P60: 45.766 | Q60: 54.6 | S60: 100 | T60: 72.76 | U60: 7.276 | V60: 71.39325 | W60: 0.00% | X60: 是
A61: 59 | B61: 2016010463 | C61: 张浩苏 | D61: 99.625 | E61: 59.775 | F61: 95 | G61: 38 | H61: 3 | I61: 100.775 | J61: 20.155 | K61: 63.45555556 | L61: 70.27272727 | M61: 64.8189899 | O61: 64.8189899 | P61: 45.37329293 | Q61: 50.4 | S61: 100 | T61: 70.24 | U61: 7.024 | V61: 72.55229293 | W61: 18.75% | X61: 是
A62: 60 | B62: 2016010464 | C62: 张家祺 | D62: 99.53125 | E62: 59.71875 | F62: 80 | G62: 32 | I62: 91.71875 | J62: 18.34375 | K62: 72.40243902 | L62: 73.0952381 | M62: 72.54099884 | O62: 72.54099884 | P62: 50.77869919 | Q62: 61.4 | S62: 100 | T62: 76.84 | U62: 7.684 | V62: 76.80644919 | W62: 12.50% | X62: 是
A63: 61 | B63: 2016010465 | C63: 赵政棠 | D63: 99.4375 | E63: 59.6625 | F63: 65 | G63: 26 | I63: 85.6625 | J63: 17.1325 | K63: 56.51136364 | L63: 59.18181818 | M63: 57.04545455 | O63: 57.04545455 | P63: 39.93181818 | Q63: 52.5 | S63: 100 | T63: 71.5 | U63: 7.15 | V63: 64.21431818 | W63: 6.25% | X63: 是
A64: 62 | B64: 2016010968 | C64: 郭昊钰 | D64: 99.4375 | E64: 59.6625 | F64: 75 | G64: 30 | I64: 89.6625 | J64: 17.9325 | K64: 49.85507246 | L64: 65.5 | M64: 52.98405797 | O64: 52.98405797 | P64: 37.08884058 | Q64: 64.7 | S64: 100 | T64: 78.82 | U64: 7.882 | V64: 62.90334058 | W64: 0.00% | X64: 是
A65: 63 | B65: 2015010445 | C65: 曹文都 | D65: 99.44117647 | E65: =D65*0.6 -> 59.66470588 | F65: 85 | G65: =F65*0.4 -> 34 | I65: =E65+G65+H65 -> 93.66470588 | J65: =I65*0.2 -> 18.73294118 | K65: 61.6547619 | L65: 73.64285714 | M65: =0.8*K65+0.2*L65 -> 64.05238095 | O65: =M65+N65 -> 64.05238095 | P65: =O65*0.7 -> 44.83666667 | Q65: 66 | S65: 100 | T65: =R65+Q65*0.6+S65*0.4 -> 79.6 | U65: =0.1*T65 -> 7.96 | V65: 71.52960784 | W65: 12.50% | X65: 是
A66: 64 | B66: 2016010466 | C66: 曹艳静 | D66: 99.61764706 | E66: =D66*0.6 -> 59.77058824 | F66: 100 | G66: 40 | H66: 3.325 | I66: 103.0955882 | J66: 20.61911765 | K66: 82.42647059 | L66: 86.15384615 | M66: 83.1719457 | N66: 2 | O66: 85.1719457 | P66: 59.62036199 | Q66: 85.8 | R66: 31 | S66: 100 | T66: 122.48 | U66: 12.248 | V66: 92.48747964 | W66: 87.50% | X66: 否
A67: 65 | B67: 2016010468 | C67: 刘恋 | D67: 99.67647059 | E67: 59.80588235 | F67: 100 | G67: =F67*0.4 -> 40 | I67: =E67+G67+H67 -> 99.80588235 | J67: =I67*0.2 -> 19.96117647 | K67: 90.04411765 | L67: 89.27272727 | M67: 89.88983957 | O67: =M67+N67 -> 89.88983957 | P67: =O67*0.7 -> 62.9228877 | Q67: 75.8 | S67: 100 | T67: 85.48 | U67: 8.548 | V67: =J67+P67+U67 -> 91.43206417 | W67: 93.75% | X67: 否
A68: 66 | B68: 2016010469 | C68: 刘亮 | D68: 99.5 | E68: 59.7 | F68: 100 | G68: 40 | H68: 7.5 | I68: 107.2 | J68: 21.44 | K68: 90.18571429 | L68: 85.77777778 | M68: 89.30412698 | O68: 89.30412698 | P68: 62.51288889 | Q68: 75.4 | S68: 100 | T68: =R68+Q68*0.6+S68*0.4 -> 85.24 | U68: =0.1*T68 -> 8.524 | V68: 92.47688889 | W68: 100.00% | X68: 否
A69: 67 | B69: 2016010470 | C69: 刘思琦 | D69: 99.55882353 | E69: 59.73529412 | F69: 85 | G69: 34 | I69: 93.73529412 | J69: 18.74705882 | K69: 70 | L69: 82.26086957 | M69: 72.45217391 | O69: 72.45217391 | P69: 50.71652174 | Q69: 85.2 | S69: 100 | T69: 91.12 | U69: 9.112 | V69: 78.57558056 | W69: 37.50% | X69: 是
A70: 68 | B70: 2016010471 | C70: 马小彩 | D70: 99.61764706 | E70: 59.77058824 | F70: 92 | G70: 36.8 | I70: 96.57058824 | J70: 19.31411765 | K70: 68.32222222 | L70: 75 | M70: 69.65777778 | O70: 69.65777778 | P70: 48.76044444 | Q70: 70.7 | S70: 100 | T70: 82.42 | U70: 8.242 | V70: 76.31656209 | W70: 25.00% | X70: 是
A71: 69 | B71: 2016010472 | C71: 任婧 | D71: 99.61764706 | E71: 59.77058824 | F71: 100 | G71: 40 | H71: 7.55 | I71: 107.3205882 | J71: 21.46411765 | K71: 89.2 | L71: 88 | M71: 88.96 | O71: 88.96 | P71: 62.272 | Q71: 79 | S71: 100 | T71: 87.4 | U71: 8.74 | V71: 92.47611765 | W71: 93.75% | X71: 否
A72: 70 | B72: 2016010474 | C72: 谢雨燊 | D72: 99.58823529 | E72: 59.75294118 | F72: 95 | G72: 38 | I72: 97.75294118 | J72: 19.55058824 | K72: 74.38571429 | L72: 82.11764706 | M72: 75.93210084 | O72: 75.93210084 | P72: 53.15247059 | Q72: 81.2 | R72: 8 | S72: 100 | T72: 96.72 | U72: 9.672 | V72: 82.37505882 | W72: 43.75% | X72: 是
A73: 71 | B73: 2016010475 | C73: 姚玮叶 | D73: 99.52941176 | E73: 59.71764706 | F73: 100 | G73: 40 | I73: 99.71764706 | J73: 19.94352941 | K73: 74.64285714 | L73: 78.33333333 | M73: 75.38095238 | O73: 75.38095238 | P73: 52.76666667 | Q73: 75.3 | S73: 100 | T73: 85.18 | U73: 8.518 | V73: 81.22819608 | W73: 37.50% | X73: 是
A74: 72 | B74: 2016010476 | C74: 蔡润 | D74: 99.47058824 | E74: 59.68235294 | F74: 100 | G74: 40 | H74: 7 | I74: 106.6823529 | J74: 21.33647059 | K74: 78.44285714 | L74: 85.28571429 | M74: 79.81142857 | O74: 79.81142857 | P74: 55.868 | Q74: 61.5 | S74: 100 | T74: 76.9 | U74: 7.69 | V74: 84.89447059 | W74: 56.25% | X74: 否
A75: 73 | B75: 2016010477 | C75: 曹成昆 | D75: 99.41176471 | E75: 59.64705882 | F75: 90 | G75: 36 | I75: 95.64705882 | J75: 19.12941176 | K75: 71.45783133 | L75: 65.35294118 | M75: 70.2368533 | O75: 70.2368533 | P75: 49.16579731 | Q75: 61 | S75: 100 | T75: 76.6 | U75: 7.66 | V75: 75.95520907 | W75: 37.50% | X75: 是
A76: 74 | B76: 2016010478 | C76: 谷嘉伟 | D76: 99.47058824 | E76: 59.68235294 | F76: 90 | G76: 36 | I76: 95.68235294 | J76: 19.13647059 | K76: 64.23655914 | L76: 73.33333333 | M76: 66.05591398 | O76: 66.05591398 | P76: 46.23913978 | Q76: 71.2 | S76: 100 | T76: 82.72 | U76: 8.272 | V76: 73.64761037 | W76: 18.75% | X76: 是
A77: 75 | B77: 2016010479 | C77: 江方圆 | D77: 99.58823529 | E77: 59.75294118 | F77: 95 | G77: 38 | I77: 97.75294118 | J77: 19.55058824 | K77: 67.19736842 | L77: 71.33333333 | M77: 68.0245614 | O77: 68.0245614 | P77: 47.61719298 | Q77: 77 | S77: 100 | T77: 86.2 | U77: 8.62 | V77: 75.78778122 | W77: 6.25% | X77: 是
A78: 76 | B78: 2016010480 | C78: 焦晓宇 | D78: 99.61764706 | E78: 59.77058824 | F78: 100 | G78: 40 | H78: 7.5 | I78: 107.2705882 | J78: 21.45411765 | K78: 78.58571429 | L78: 78.09090909 | M78: 78.48675325 | O78: 78.48675325 | P78: 54.94072727 | Q78: 88.6 | R78: 2.6667 | S78: 100 | T78: 95.8267 | U78: 9.58267 | V78: 85.97751492 | W78: 62.50% | X78: 否
A79: 77 | B79: 2016010481 | C79: 李品贤 | D79: 99.52941176 | E79: 59.71764706 | F79: 90 | G79: 36 | I79: 95.71764706 | J79: 19.14352941 | K79: 70.30851064 | L79: 75.55555556 | M79: 71.35791962 | O79: 71.35791962 | P79: 49.95054374 | Q79: 73.8 | S79: 100 | T79: 84.28 | U79: 8.428 | V79: 77.52207315 | W79: 43.75% | X79: 是
A80: 78 | B80: 2016010482 | C80: 罗青涵 | D80: 99.5 | E80: 59.7 | F80: 100 | G80: 40 | I80: 99.7 | J80: 19.94 | K80: 75.05714286 | L80: 68.90909091 | M80: 73.82753247 | O80: 73.82753247 | P80: 51.67927273 | Q80: 71.2 | S80: 100 | T80: 82.72 | U80: 8.272 | V80: 79.89127273 | W80: 31.25% | X80: 否
A81: 79 | B81: 2016010484 | C81: 朴俊浩 | D81: 99.5 | E81: 59.7 | F81: 90 | G81: 36 | I81: 95.7 | J81: 19.14 | K81: 70.01769912 | L81: 72.25 | M81: 70.46415929 | O81: 70.46415929 | P81: 49.3249115 | Q81: 73.1 | S81: 100 | T81: 83.86 | U81: 8.386 | V81: 76.8509115 | W81: 12.50% | X81: 是
A82: 80 | B82: 2016010485 | C82: 王本颖 | D82: 99.61764706 | E82: 59.77058824 | F82: 75 | G82: 30 | I82: 89.77058824 | J82: 17.95411765 | K82: 66.45614035 | L82: 69.16666667 | M82: 66.99824561 | O82: 66.99824561 | P82: 46.89877193 | Q82: 64.5 | S82: 100 | T82: 78.7 | U82: 7.87 | V82: 72.72288958 | W82: 25.00% | X82: 是
A83: 81 | B83: 2016010486 | C83: 王宁 | D83: 99.58823529 | E83: 59.75294118 | F83: 85 | G83: 34 | I83: 93.75294118 | J83: 18.75058824 | K83: 64.82894737 | L83: 72.75 | M83: 66.41315789 | O83: 66.41315789 | P83: 46.48921053 | Q83: 61.6 | S83: 100 | T83: 76.96 | U83: 7.696 | V83: 72.93579876 | W83: 18.75% | X83: 是
A84: 82 | B84: 2016010487 | C84: 王亚平 | D84: 99.58823529 | E84: 59.75294118 | F84: 100 | G84: 40 | H84: 4.6 | I84: 104.3529412 | J84: 20.87058824 | K84: 79.97142857 | L84: 80.8125 | M84: 80.13964286 | O84: 80.13964286 | P84: 56.09775 | Q84: 55.7 | S84: 100 | T84: 73.42 | U84: 7.342 | V84: 84.31033824 | W84: 62.50% | X84: 否
A85: 83 | B85: 2016010488 | C85: 武旺 | D85: 99.64705882 | E85: 59.78823529 | F85: 100 | G85: 40 | I85: 99.78823529 | J85: 19.95764706 | K85: 79.84615385 | L85: 85.9375 | M85: 81.06442308 | O85: 81.06442308 | P85: 56.74509615 | Q85: 53.8 | S85: 100 | T85: 72.28 | U85: 7.228 | V85: 83.93074321 | W85: 62.50% | X85: 否
A86: 84 | B86: 2016010489 | C86: 肖文 | D86: 99.52941176 | E86: 59.71764706 | F86: 95 | G86: 38 | H86: 4 | I86: 101.7176471 | J86: 20.34352941 | K86: 82.72857143 | L86: 85.1875 | M86: 83.22035714 | O86: 83.22035714 | P86: 58.25425 | Q86: 75.5 | S86: 100 | T86: 85.3 | U86: 8.53 | V86: 87.12777941 | W86: 68.75% | X86: 是
A87: 85 | B87: 2016010490 | C87: 邢皓为 | D87: 99.61764706 | E87: 59.77058824 | F87: 95 | G87: 38 | I87: 97.77058824 | J87: 19.55411765 | K87: 73.82051282 | L87: 76.0625 | M87: 74.26891026 | O87: 74.26891026 | P87: 51.98823718 | Q87: 68.2 | S87: 100 | T87: 80.92 | U87: 8.092 | V87: 79.63435483 | W87: 43.75% | X87: 是
A88: 86 | B88: 2016010491 | C88: 闫伟俊 | D88: 99.67647059 | E88: 59.80588235 | F88: 100 | G88: 40 | I88: 99.80588235 | J88: 19.96117647 | K88: 82.97142857 | L88: 83.57142857 | M88: 83.09142857 | O88: 83.09142857 | P88: 58.164 | Q88: 52.9 | S88: 100 | T88: 71.74 | U88: 7.174 | V88: 85.29917647 | W88: 62.50% | X88: 否
A89: 87 | B89: 2016010492 | C89: 严聿捷 | D89: 99.73529412 | E89: 59.84117647 | F89: 100 | G89: 40 | H89: 6 | I89: 105.8411765 | J89: 21.16823529 | K89: 83.55714286 | L89: 86.13333333 | M89: 84.07238095 | O89: 84.07238095 | P89: 58.85066667 | Q89: 74.8 | S89: 100 | T89: 84.88 | U89: 8.488 | V89: 88.50690196 | W89: 87.50% | X89: 否
A90: 88 | B90: 2016010493 | C90: 颜小岷 | D90: 99.64705882 | E90: 59.78823529 | F90: 100 | G90: 40 | H90: 4.6 | I90: 104.3882353 | J90: 20.87764706 | K90: 74.75641026 | L90: 70.91666667 | M90: 73.98846154 | N90: 4 | O90: 77.98846154 | P90: 54.59192308 | Q90: 66.1 | R90: 5.3333 | S90: 100 | T90: 84.9933 | U90: 8.49933 | V90: 83.96890014 | W90: 31.25% | X90: 否
A91: 89 | B91: 2016010494 | C91: 杨博 | D91: 99.61764706 | E91: 59.77058824 | F91: 100 | G91: 40 | H91: 0.95 | I91: 100.7205882 | J91: 20.14411765 | K91: 89.17142857 | L91: 88.64285714 | M91: 89.06571429 | N91: 8 | O91: 97.06571429 | P91: 67.946 | Q91: 69.2 | S91: 100 | T91: 81.52 | U91: 8.152 | V91: 96.24211765 | W91: 100.00% | X91: 否
A92: 90 | B92: 2016010496 | C92: 张宇昂 | D92: 99.44117647 | E92: 59.66470588 | F92: 65 | G92: 26 | I92: 85.66470588 | J92: 17.13294118 | K92: 58.71186441 | L92: 72.5 | M92: 61.46949153 | O92: 61.46949153 | P92: 43.02864407 | Q92: 60.8 | S92: 100 | T92: 76.48 | U92: 7.648 | V92: 67.80958524 | W92: 12.50% | X92: 是
A93: 91 | B93: 2016010497 | C93: 张玉宝 | D93: 99.23529412 | E93: 59.54117647 | F93: 75 | G93: 30 | I93: 89.54117647 | J93: 17.90823529 | K93: 60.99 | L93: 66.63636364 | M93: 62.11927273 | O93: 62.11927273 | P93: 43.48349091 | Q93: 74.1 | S93: 100 | T93: 84.46 | U93: 8.446 | V93: 69.8377262 | W93: 12.50% | X93: 是
A94: 92 | B94: 2016010498 | C94: 赵逸伦 | D94: 99.52941176 | E94: 59.71764706 | F94: 40 | G94: 16 | I94: 75.71764706 | J94: 15.14352941 | K94: 56.64166667 | L94: 60.66666667 | M94: 57.44666667 | O94: 57.44666667 | P94: 40.21266667 | Q94: 56.6 | S94: 100 | T94: 73.96 | U94: 7.396 | V94: 62.75219608 | W94: 6.25% | X94: 是
A95: 93 | B95: 2016010584 | C95: 刘梦凯 | D95: 99.64705882 | E95: 59.78823529 | F95: 90 | G95: 36 | H95: 2 | I95: 97.78823529 | J95: 19.55764706 | K95: 65.1547619 | L95: 76.8 | M95: 67.48380952 | O95: 67.48380952 | P95: 47.23866667 | Q95: 62.9 | R95: 2 | S95: 100 | T95: 79.74 | U95: 7.974 | V95: 74.77031373 | W95: 25.00% | X95: 是
A96: 94 | B96: 2016010073 | C96: 曹景臻 | D96: 99.6 | E96: =D96*0.6 -> 59.76 | F96: 100 | G96: 40 | H96: 24 | I96: 123.76 | J96: 24.752 | K96: 77.9 | L96: 76.05555556 | M96: 77.53111111 | O96: 77.53111111 | P96: 54.27177778 | Q96: 71.8 | R96: 2 | S96: 100 | T96: 85.08 | U96: 8.508 | V96: 87.53177778 | W96: 50.00% | X96: 否
A97: 95 | B97: 2016010097 | C97: 章文昊 | D97: 99.4 | E97: =D97*0.6 -> 59.64 | F97: 97 | G97: 38.8 | H97: 20 | I97: 118.44 | J97: 23.688 | K97: 82.3 | L97: 88.82352941 | M97: 83.60470588 | O97: 83.60470588 | P97: 58.52329412 | Q97: 63.3 | R97: 2 | S97: 100 | T97: 79.98 | U97: 7.998 | V97: 90.20929412 | W97: 68.75% | X97: 否
A98: 96 | B98: 2016010142 | C98: 常兆恒 | D98: 99.28 | E98: 59.568 | F98: 100 | G98: 40 | H98: 35.4 | I98: 134.968 | J98: 26.9936 | K98: 83.01428571 | L98: 84.47619048 | M98: 83.30666667 | N98: 8 | O98: 91.30666667 | P98: 63.91466667 | Q98: 56.6 | R98: 2 | S98: 100 | T98: 75.96 | U98: 7.596 | V98: 98.50426667 | W98: 75.00% | X98: 否
A99: 97 | B99: 2016010430 | C99: 张翔瑞 | D99: 99.68 | E99: 59.808 | F99: 100 | G99: 40 | H99: 26 | I99: 125.808 | J99: 25.1616 | K99: 88.22857143 | L99: 82.35714286 | M99: 87.05428571 | N99: 33.33667 | O99: 120.3909557 | P99: 84.273669 | Q99: 83.2 | R99: 15 | S99: 100 | T99: 104.92 | U99: 10.492 | V99: 119.927269 | W99: 75.00% | X99: 否
A100: 98 | B100: 2016010436 | C100: 李昭颐 | D100: 99.32 | E100: 59.592 | F100: 100 | G100: 40 | H100: 21 | I100: 120.592 | J100: 24.1184 | K100: 86.92857143 | L100: 85.71428571 | M100: 86.68571429 | N100: 6 | O100: 92.68571429 | P100: 64.88 | Q100: 69.6 | S100: 100 | T100: 81.76 | U100: 8.176 | V100: 97.1744 | W100: 81.25% | X100: 否
A101: 99 | B101: 2016010440 | C101: 吴艳芬 | D101: 99.52 | E101: 59.712 | F101: 100 | G101: 40 | H101: 27.5 | I101: 127.212 | J101: 25.4424 | K101: 94.24285714 | L101: 95.36363636 | M101: 94.46701299 | N101: 29.1075 | O101: 123.574513 | P101: 86.50215909 | Q101: 79.3 | R101: 15 | S101: 100 | T101: 102.58 | U101: 10.258 | V101: 122.2025591 | W101: 93.75% | X101: 否
A102: 100 | B102: 2016010473 | C102: 石韶霏 | D102: 99.36 | E102: 59.616 | F102: 100 | G102: 40 | H102: 25.3 | I102: 124.916 | J102: 24.9832 | K102: 82.48571429 | L102: 87 | M102: 83.38857143 | O102: 83.38857143 | P102: 58.372 | Q102: 72.3 | R102: 8 | S102: 100 | T102: 91.38 | U102: 9.138 | V102: 92.4932 | W102: 81.25% | X102: 否
A103: 101 | B103: 2016010545 | C103: 李建 | D103: 99.36 | E103: 59.616 | F103: 100 | G103: 40 | H103: 22 | I103: 121.616 | J103: 24.3232 | K103: 84.57142857 | L103: 81.57142857 | M103: 83.97142857 | O103: 83.97142857 | P103: 58.78 | Q103: 76.4 | R103: 2 | S103: 100 | T103: 87.84 | U103: 8.784 | V103: 91.8872 | W103: 75.00% | X103: 否
A104: 102 | B104: 2016010601 | C104: 何姿颖 | D104: 99.44 | E104: 59.664 | F104: 100 | G104: 40 | H104: 24 | I104: 123.664 | J104: 24.7328 | K104: 88.57142857 | L104: 90.84615385 | M104: 89.02637363 | N104: 31.53667 | O104: 120.5630436 | P104: 84.39413054 | Q104: 82.8 | S104: 100 | T104: 89.68 | U104: 8.968 | V104: 118.0949305 | W104: 100.00% | X104: 否
A105: 103 | B105: 2016010615 | C105: 柏亚 | D105: 99.12 | E105: 59.472 | F105: 100 | G105: 40 | H105: 22 | I105: 121.472 | J105: 24.2944 | K105: 71.51428571 | L105: 72.92857143 | M105: 71.79714286 | O105: 71.79714286 | P105: 50.258 | Q105: 65.6 | R105: 2 | S105: 100 | T105: 81.36 | U105: 8.136 | V105: 82.6884 | W105: 12.50% | X105: 否
A106: 104 | B106: 2016010616 | C106: 边晨曦 | D106: 99.56 | E106: 59.736 | F106: 100 | G106: 40 | H106: 20 | I106: 119.736 | J106: 23.9472 | K106: 83.01428571 | L106: 80.63636364 | M106: 82.5387013 | O106: 82.5387013 | P106: 57.77709091 | Q106: 55.2 | R106: 10 | S106: 100 | T106: 83.12 | U106: 8.312 | V106: 90.03629091 | W106: 62.50% | X106: 否
A107: 105 | B107: 2016010666 | C107: 孟诗涵 | D107: 99.4 | E107: 59.64 | F107: 100 | G107: 40 | H107: 20.7 | I107: 120.34 | J107: 24.068 | K107: 81.77142857 | L107: 84.61538462 | M107: 82.34021978 | O107: 82.34021978 | P107: 57.63815385 | Q107: 76.3 | S107: 100 | T107: 85.78 | U107: 8.578 | V107: 90.28415385 | W107: 75.00% | X107: 否
A108: 106 | B108: 2016010690 | C108: 高灿 | D108: 99.36 | E108: 59.616 | F108: 100 | G108: 40 | H108: 25 | I108: 124.616 | J108: 24.9232 | K108: 82.12857143 | L108: 86.66666667 | M108: 83.03619048 | N108: 7 | O108: 90.03619048 | P108: 63.02533333 | Q108: 80 | R108: 8 | S108: 100 | T108: 96 | U108: 9.6 | V108: 97.54853333 | W108: 81.25% | X108: 否
A109: 107 | B109: 2016010876 | C109: 杨鸿伟 | D109: 99.48 | E109: 59.688 | F109: 100 | G109: 40 | H109: 20 | I109: 119.688 | J109: 23.9376 | K109: 82.54285714 | L109: 81.90909091 | M109: 82.4161039 | O109: 82.4161039 | P109: 57.69127273 | Q109: 67.9 | R109: 2 | S109: 100 | T109: 82.74 | U109: 8.274 | V109: 89.90287273 | W109: 75.00% | X109: 否
A110: 108 | B110: 2016010935 | C110: 揣云涵 | D110: 99.8 | E110: 59.88 | F110: 100 | G110: 40 | H110: 26 | I110: 125.88 | J110: 25.176 | K110: 83.1 | L110: 85.76923077 | M110: 83.63384615 | O110: 83.63384615 | P110: 58.54369231 | Q110: 70.4 | R110: 2 | S110: 100 | T110: 84.24 | U110: 8.424 | V110: 92.14369231 | W110: 75.00% | X110: 否
A111: 109 | B111: 2016011085 | C111: 徐晴 | D111: 99.48 | E111: 59.688 | F111: 100 | G111: 40 | H111: 20.4 | I111: 120.088 | J111: 24.0176 | K111: 85.11428571 | L111: 90.30769231 | M111: 86.15296703 | N111: 6 | O111: 92.15296703 | P111: 64.50707692 | Q111: 86.6 | S111: 100 | T111: 91.96 | U111: 9.196 | V111: 97.72067692 | W111: 75.00% | X111: 否
A112: 110 | B112: 2016011117 | C112: 赵金 | D112: 99.4 | E112: 59.64 | F112: 100 | G112: 40 | H112: 20 | I112: 119.64 | J112: 23.928 | K112: 86.78571429 | L112: 89 | M112: 87.22857143 | N112: 2.67 | O112: 89.89857143 | P112: 62.929 | Q112: 74.8 | S112: 100 | T112: 84.88 | U112: 8.488 | V112: 95.345 | W112: 93.75% | X112: 否
A113: 111 | B113: 2016011128 | C113: 王锦涛 | D113: 99.4 | E113: 59.64 | F113: 100 | G113: 40 | H113: 20 | I113: 119.64 | J113: 23.928 | K113: 82.02857143 | L113: 81 | M113: 81.82285714 | O113: 81.82285714 | P113: 57.276 | Q113: 60 | R113: 2 | S113: 100 | T113: 78 | U113: 7.8 | V113: 89.004 | W113: 68.75% | X113: 否
A114: 112 | B114: 2016011185 | C114: 黄京平 | D114: 99.28 | E114: 59.568 | F114: 90 | G114: 36 | H114: 20 | I114: 115.568 | J114: 23.1136 | K114: 84.44285714 | L114: 81.28571429 | M114: 83.81142857 | N114: 2.67 | O114: 86.48142857 | P114: 60.537 | Q114: 76.4 | R114: 2 | S114: 100 | T114: 87.84 | U114: 8.784 | V114: 92.4346 | W114: 81.25% | X114: 否
A115: 113 | B115: 2016011267 | C115: 周久强 | D115: 99 | E115: 59.4 | F115: 100 | G115: 40 | H115: 20 | I115: 119.4 | J115: 23.88 | K115: 76.01428571 | L115: 76 | M115: 76.01142857 | O115: 76.01142857 | P115: 53.208 | Q115: 65.3 | S115: 100 | T115: 79.18 | U115: 7.918 | V115: 85.006 | W115: 37.50% | X115: 否
A116: 114 | B116: 2016011460 | C116: 刘申宁 | D116: 98.92 | E116: 59.352 | F116: 100 | G116: 40 | H116: 24 | I116: 123.352 | J116: 24.6704 | K116: 78.1 | L116: 77.61538462 | M116: 78.00307692 | O116: 78.00307692 | P116: 54.60215385 | Q116: 72.8 | R116: 2 | S116: 100 | T116: 85.68 | U116: 8.568 | V116: 87.84055385 | W116: 43.75% | X116: 否
A117: 115 | B117: 2016011548 | C117: 季腾辉 | D117: 99.24 | E117: 59.544 | F117: 100 | G117: 40 | H117: 27 | I117: 126.544 | J117: 25.3088 | K117: 80.15714286 | L117: 79.375 | M117: 80.00071429 | O117: 80.00071429 | P117: 56.0005 | Q117: 65.8 | S117: 100 | T117: 79.48 | U117: 7.948 | V117: 89.2573 | W117: 62.50% | X117: 否
A118: 116 | B118: 2016011589 | C118: 沈稼轩 | D118: 99.16 | E118: 59.496 | F118: 100 | G118: 40 | H118: 20 | I118: 119.496 | J118: 23.8992 | K118: 79.67142857 | L118: 83.76923077 | M118: 80.49098901 | O118: 80.49098901 | P118: 56.34369231 | Q118: 60 | R118: 2 | S118: 100 | T118: 78 | U118: 7.8 | V118: 88.04289231 | W118: 56.25% | X118: 否
A119: 117 | B119: 2016011809 | C119: 宋明霞 | D119: 99.44 | E119: 59.664 | F119: 100 | G119: 40 | H119: 24.8 | I119: 124.464 | J119: 24.8928 | K119: 90.98571429 | L119: 89.84615385 | M119: 90.7578022 | N119: 6.6667 | O119: 97.4245022 | P119: 68.19715154 | Q119: 81.6 | S119: 100 | T119: 88.96 | U119: 8.896 | V119: 101.9859515 | W119: 100.00% | X119: 否
A120: 118 | B120: 2016011820 | C120: 朱梦 | D120: 99.28 | E120: 59.568 | F120: 100 | G120: 40 | H120: 22 | I120: 121.568 | J120: 24.3136 | K120: 81.45714286 | L120: 88.53846154 | M120: 82.87340659 | O120: 82.87340659 | P120: 58.01138462 | Q120: 79.2 | S120: 100 | T120: 87.52 | U120: 8.752 | V120: 91.07698462 | W120: 68.75% | X120: 否
A121: 119 | B121: 2016011865 | C121: 许杰 | D121: 99.24 | E121: 59.544 | F121: 100 | G121: 40 | H121: 24 | I121: 123.544 | J121: 24.7088 | K121: 82.71428571 | L121: 80.15384615 | M121: 82.2021978 | N121: 4 | O121: 86.2021978 | P121: 60.34153846 | Q121: 80.2 | R121: 37 | S121: 100 | T121: 125.12 | U121: 12.512 | V121: 97.56233846 | W121: 68.75% | X121: 否
A122: 120 | B122: 2016010863 | C122: 李江 | D122: 99.03030303 | E122: =D122*0.6 -> 59.41818182 | F122: 100 | G122: =F122*0.4 -> 40 | I122: =E122+G122+H122 -> 99.41818182 | J122: =I122*0.2 -> 19.88363636 | K122: 75.45333333 | L122: 78.71428571 | M122: =0.8*K122+0.2*L122 -> 76.10552381 | O122: =M122+N122 -> 76.10552381 | P122: =O122*0.7 -> 53.27386667 | Q122: 71.3 | S122: 100 | T122: =R122+Q122*0.6+S122*0.4 -> 82.78 | U122: =0.1*T122 -> 8.278 | V122: =J122+P122+U122 -> 81.43550303 | W122: 25.00% | X122: 否
A123: 121 | B123: 2016010076 | C123: 冯源 | D123: 99.25 | E123: =D123*0.6 -> 59.55 | F123: 100 | G123: =F123*0.4 -> 40 | I123: =E123+G123+H123 -> 99.55 | J123: =I123*0.2 -> 19.91 | K123: 81.3 | L123: 79.07692308 | M123: =K123*0.8+L123*0.2 -> 80.85538462 | O123: =M123+N123 -> 80.85538462 | P123: =O123*0.7 -> 56.59876923 | Q123: 65 | S123: 100 | T123: =R123+Q123*0.6+S123*0.4 -> 79 | U123: =0.1*T123 -> 7.9 | V123: =J123+P123+U123 -> 84.40876923 | W123: =10/16 -> 62.50% | X123: 否
A124: 122 | B124: 2016010104 | C124: 陈龙 | D124: 99.6875 | E124: =D124*0.6 -> 59.8125 | F124: 85 | G124: =F124*0.4 -> 34 | I124: =E124+G124+H124 -> 93.8125 | J124: =I124*0.2 -> 18.7625 | K124: 70.48224299 | L124: 71.86666667 | M124: =K124*0.8+L124*0.2 -> 70.75912773 | O124: =M124+N124 -> 70.75912773 | P124: =O124*0.7 -> 49.53138941 | Q124: 54.6 | S124: 100 | T124: =R124+Q124*0.6+S124*0.4 -> 72.76 | U124: =0.1*T124 -> 7.276 | V124: =J124+P124+U124 -> 75.56988941 | W124: =3/16 -> 18.75% | X124: 是
A125: 123 | B125: 2016010158 | C125: 周敬泽 | D125: 99.53125 | E125: =D125*0.6 -> 59.71875 | F125: 95 | G125: =F125*0.4 -> 38 | H125: 6 | I125: =E125+G125+H125 -> 103.71875 | J125: =I125*0.2 -> 20.74375 | K125: 71.91489362 | L125: 69.33333333 | M125: =K125*0.8+L125*0.2 -> 71.39858156 | N125: 13 | O125: =M125+N125 -> 84.39858156 | P125: =O125*0.7 -> 59.07900709 | Q125: 69.4 | S125: 100 | T125: =R125+Q125*0.6+S125*0.4 -> 81.64 | U125: =0.1*T125 -> 8.164 | V125: =J125+P125+U125 -> 87.98675709 | W125: =6/16 -> 37.50% | X125: 是
A126: 124 | B126: 2016011080 | C126: 高琳琳 | D126: 99.67647059 | E126: =D126*0.6 -> 59.80588235 | F126: 100 | G126: =F126*0.4 -> 40 | H126: 8.1 | I126: =E126+G126+H126 -> 107.9058824 | J126: =I126*0.2 -> 21.58117647 | K126: 77.97701149 | L126: 84.86666667 | M126: =0.8*K126+0.2*L126 -> 79.35494253 | O126: =M126+N126 -> 79.35494253 | P126: =O126*0.7 -> 55.54845977 | Q126: 74.5 | S126: 100 | T126: =R126+Q126*0.6+S126*0.4 -> 84.7 | U126: =0.1*T126 -> 8.47 | V126: =J126+P126+U126 -> 85.59963624 | W126: =11/16 -> 68.75% | X126: 否
A127: 125 | B127: 2015010471 | C127: 乔丹 | D127: 98.72727273 | E127: =D127*0.6 -> 59.23636364 | F127: 79 | G127: =F127*0.4 -> 31.6 | I127: =E127+G127+H127 -> 90.83636364 | J127: =I127*0.2 -> 18.16727273 | K127: 59.70689655 | L127: 69 | M127: =0.8*K127+0.2*L127 -> 61.56551724 | O127: =M127+N127 -> 61.56551724 | P127: =O127*0.7 -> 43.09586207 | Q127: 69.78548387 | S127: 100 | T127: 40 | U127: =0.1*T127 -> 4 | V127: =J127+P127+U127 -> 65.2631348 | W127: 0.00% | X127: 是
A128: 126 | B128: 2015010462 | C128: 吴昊 | D128: 99.14705882 | E128: 59.48823529 | F128: 85 | G128: 34 | I128: 93.48823529 | J128: 18.69764706 | K128: 62 | L128: 78.3869936 | M128: 65.27739872 | O128: 65.27739872 | P128: 45.6941791 | Q128: 69.78548387 | S128: 100 | T128: =R128+Q128*0.6+S128*0.4 -> 81.87129032 | U128: 8.187129032 | V128: 72.5789552 | W128: 0.00% | X128: 是
A129: 127 | B129: 2015010465 | C129: 张旭斌 | D129: 99.26470588 | E129: 59.55882353 | F129: 100 | G129: 40 | I129: 99.55882353 | J129: 19.91176471 | K129: 72.07352941 | L129: 72.97142857 | M129: 72.25310924 | O129: 72.25310924 | P129: 50.57717647 | Q129: 69.78548387 | S129: 100 | T129: 81.87129032 | U129: 8.187129032 | V129: 78.67607021 | W129: 50.00% | X129: 否
A130: 128 | B130: 2015010491 | C130: 汤宝林 | D130: 99.26470588 | E130: 59.55882353 | F130: 79 | G130: 31.6 | I130: 91.15882353 | J130: 18.23176471 | K130: 62.58536585 | L130: 66.8 | M130: 63.42829268 | O130: 63.42829268 | P130: 44.39980488 | Q130: 69.78548387 | S130: 100 | T130: 81.87129032 | U130: 8.187129032 | V130: 70.81869862 | W130: 0.00% | X130: 是
